Workbook

Sheet Lista (hidden)
A2: 10010001 | B2: SKUPŠTINA ŽUPANIJE POSAVSKE | I2: 1. mjesec | J2: I. kvartal | K2: Siječanj 2016. god.
A3: 10010002 | B3: STRUČNA SLUŽBA SKUPŠTINE | I3: 2. mjesec | J3: I. kvartal | K3: Veljača 2016. god.
A4: 11010001 | B4: VLADA ŽUPANIJE POSAVSKE | I4: 3. mjesec | J4: I. kvartal | K4: Ožujak 2016. god.
A5: 11010002 | B5: URED ZA RASELJENE | I5: 4. mjesec | J5: II. kvartal | K5: Travanj 2016. god.
A6: 11010003 | B6: URED ZA ZAKONODAVSTVO | I6: 5. mjesec | J6: II. kvartal | K6: Svibanj 2016. god.
A7: 11010004 | B7: SLUŽBA ZA ODNOSE S JAVNOŠĆU | I7: 6. mjesec | J7: II. kvartal | K7: Lipanj 2016. god.
A8: 11010005 | B8: URED ZA GOSPODARSKI RAZVOJ ŽP | I8: 7. mjesec | J8: III. kvartal | K8: Srpanj 2016. god.
A9: 12010001 | B9: ZAJEDNIČKA SLUŽBA VLADE | I9: 8. mjesec | J9: III. kvartal | K9: Kolovoz 2016. god.
A10: 13010001 | B10: MINISTARSTVO UNUTARNJIH POSLOVA | I10: 9. mjesec | J10: III. kvartal | K10: Rujan 2016. god.
A11: 14010001 | B11: MINISTARSTVO PRAVOSUĐA I UPRAVE | I11: 10. mjesec | J11: IV. kvartal | K11: Listopad 2016. god.
A12: 14020003 | B12: OPĆINSKI SUD ORAŠJE | I12: 11. mjesec | J12: IV. kvartal | K12: Studeni 2016. god.
A13: 14050001 | B13: OPĆINSKO PRAVOBRANITELJSTVO ORAŠJE | I13: 12. mjesec | J13: IV. kvartal | K13: Prosinac 2016. god.
A14: 14050002 | B14: OPĆINSKO PRAVOBRANITELJSTVO ODŽAK
A15: 14060001 | B15: ZAVOD ZA PRUŽANJE PRAVNE POMOĆI
A16: 15010001 | B16: MINISTARSTVO GOSPODARSTVA I PROSTORNOG UREĐENJA
A17: 16010001 | B17: MINISTARSTVO FINANCIJA
A18: 17010001 | B18: MINISTARSTVO ZDRAVSTVA, RADA I SOCIJALNE POLITIKE
A19: 18010001 | B19: MINISTARSTVO PROMETA, VEZA, TURIZMA I ZAŠTITE OKOLIŠA
A20: 19010001 | B20: MINISTARSTVO POLJOPRIVREDE, VODOPRIVREDE I ŠUMARSTVA
A21: 20010001 | B21: MINISTARSTVO PROSVJETE, ZNANOSTI, KULTURE I ŠPORTA
A22: 20020002 | B22: SREDNJA ŠKOLA PERE ZEČEVIĆA ODŽAK
A23: 20020003 | B23: ŠKOLSKI CENTAR FRA MARTINA NEDIĆA ORAŠJE
A24: 20020004 | B24: SREDNJA STRUKOVNA ŠKOLA ORAŠJE
A25: 20030001 | B25: OSNOVNA ŠKOLA ORAŠJE
A26: 20030002 | B26: OSNOVNA ŠKOLA VLADIMIRA NAZORA ODŽAK
A27: 20030003 | B27: OSNOVNA ŠKOLA RUĐERA BOŠKOVIĆA DONJA MAHALA
A28: 20030004 | B28: OSNOVNA ŠKOLA FRA ILIJE STARČEVIĆA TOLISA
A29: 20030005 | B29: OSNOVNAŠKOLA STJEPANA RADIĆA O.LUKA-BOK
A30: 20030006 | B30: OSNOVNA ŠKOLA A.G.MATOŠA VIDOVICE
A31: 20030007 | B31: OSNOVNA ŠKOLA BRAĆE RADIĆA DOMALJEVAC
A32: 21010001 | B32: MINISTARSTVO BRANITELJA
A33: 22010001 | B33: AGENCIJA ZA PRIVATIZACIJU
A34: 23010001 | B34: UPRAVA ZA CIVILNU ZAŠTITU
A35: 24010001 | B35: KANTONALNI SUD ODŽAK
A36: 26010001 | B36: ŽUPANIJSKO PRAVOBRANITELJSTVO
A37: 27010001 | B37: KANTONALNO TUŽITELJSTVO
A38: 28010001 | B38: ŽUPANIJSKA UPRAVA ZA INSPEKCIJSKE POSLOVE

Sheet Godišnji
A1: PRIJEDLOG GODIŠNJEG OPERATIVNOG PLANA RASHODA I IZDATAKA ZA 2016. GODINU
G2: =E4 -> 18010001
A3: Proračunski korisnik: | E3: =INDEX(Lista!A:B,MATCH($E$4,Lista!A:A,0),2) -> MINISTARSTVO PROMETA, VEZA, TURIZMA I ZAŠTITE OKOLIŠA
A4: Organizacijski kod: | E4: 18010001
A6: Razdjel | B6: Glava | C6: Potroš. jedinica | D6: Funkc. klasifikac. | E6: Ekonom. kod | F6: Opis | H6: Proračun za 2016. godinu | K6: I. kvartal 2016. god. | N6: II. kvartal 2016. god. | Q6: III. kvartal 2016. god. | T6: IV. kvartal 2016. god. | W6: Ukupno za 2016. god.
G7: Rashodi i | H7: Rashodi iz | I7: Ukupni | J7: Rashodi i | K7: Rashodi iz | L7: Ukupni | M7: Rashodi i | N7: Rashodi iz | O7: Ukupni | P7: Rashodi i | Q7: Rashodi iz | R7: Ukupni | S7: Rashodi i | T7: Rashodi iz | U7: Ukupni | V7: Rashodi i | W7: Rashodi iz | X7: Ukupni
G8: izdaci iz | H8: namj.sr., | I8: rashodi i | J8: izdaci iz | K8: namj.sr., | L8: rashodi i | M8: izdaci iz | N8: namj.sr., | O8: rashodi i | P8: izdaci iz | Q8: namj.sr., | R8: rashodi i | S8: izdaci iz | T8: namj.sr., | U8: rashodi i | V8: izdaci iz | W8: namj.sr., | X8: rashodi i
G9: proračuna | H9: tek. trans. i don. | I9: izdaci | J9: proračuna | K9: tek. trans. i don. | L9: izdaci | M9: proračuna | N9: tek. trans. i don. | O9: izdaci | P9: proračuna | Q9: tek. trans. i don. | R9: izdaci | S9: proračuna | T9: tek. trans. i don. | U9: izdaci | V9: proračuna | W9: tek. trans. i don. | X9: izdaci
A10: 1 | B10: 2 | C10: 3 | E10: 4 | F10: 5 | G10: 6 | H10: 7 | I10: 8 | J10: 9 | K10: 10 | L10: 11 | M10: 12 | N10: 13 | O10: 14 | P10: 15 | Q10: 16 | R10: 17 | S10: 18 | T10: 19 | U10: 20 | V10: 21 | W10: 22 | X10: 23
A11: 10 | B11: 01 | C11: 0001 | F11: SKUPŠTINA ŽUPANIJE POSAVSKE
E12: 611000 | F12: Plaće i naknade troškova zaposlenih | G12: =SUM(G13:G15) -> 415800 | H12: =SUM(H13:H15) -> 0 | I12: 415800 | J12: 0 | K12: 0 | L12: 0 | M12: 0 | N12: 0 | O12: 0 | P12: 0 | Q12: 0 | R12: 0 | S12: 0 | T12: 0 | U12: 0 | V12: 0 | W12: 0 | X12: 0 | Y12: =IF(OR(V12>G12, W12>H12),"Ukupni operativni plan je veći od Proračuna!","") -> 
E13: 611100 | F13: Bruto plaće i naknade | G13: 318500 | H13: 0 | I13: =SUM(G13:H13) -> 318500 | L13: =SUM(J13:K13) -> 0 | O13: =SUM(M13:N13) -> 0 | R13: =SUM(P13:Q13) -> 0 | U13: =SUM(S13:T13) -> 0 | V13: =S13+P13+M13+J13 -> 0 | W13: =T13+Q13+N13+K13 -> 0 | X13: =SUM(V13:W13) -> 0
E14: 611200 | F14: Naknade troškova zaposlenih | G14: 75700 | H14: 0 | I14: =SUM(G14:H14) -> 75700 | L14: =SUM(J14:K14) -> 0 | O14: =SUM(M14:N14) -> 0 | R14: =SUM(P14:Q14) -> 0 | U14: =SUM(S14:T14) -> 0 | V14: =S14+P14+M14+J14 -> 0 | W14: 0 | X14: =SUM(V14:W14) -> 0
E15: 611200 | F15: Naknade troškova zaposlenih - volonteri | G15: 21600 | H15: 0 | I15: 21600 | L15: 0 | O15: 0 | R15: 0 | U15: 0 | V15: 0 | W15: 0 | X15: 0
E16: 612000 | F16: Doprinosi poslodavca | G16: =G17 -> 34100 | H16: =H17 -> 0 | I16: 34100 | J16: 0 | K16: 0 | L16: 0 | M16: 0 | N16: 0 | O16: 0 | P16: 0 | Q16: 0 | R16: 0 | S16: 0 | T16: 0 | U16: 0 | V16: 0 | W16: 0 | X16: 0
E17: 612100 | F17: Doprinosi poslodavca | G17: 34100 | H17: 0 | I17: =SUM(G17:H17) -> 34100 | L17: =SUM(J17:K17) -> 0 | O17: =SUM(M17:N17) -> 0 | R17: =SUM(P17:Q17) -> 0 | U17: =SUM(S17:T17) -> 0 | V17: 0 | W17: 0 | X17: =SUM(V17:W17) -> 0
E18: 613000 | F18: Izdaci za materijal, sitan inventar i usluge | G18: =SUM(G19:G28) -> 288840 | H18: =SUM(H19:H28) -> 0 | I18: 288840 | J18: 0 | K18: 0 | L18: 0 | M18: 0 | N18: 0 | O18: 0 | P18: 0 | Q18: 0 | R18: 0 | S18: 0 | T18: 0 | U18: 0 | V18: 0 | W18: 0 | X18: 0
E19: 613100 | F19: Putni troškovi | G19: 6000 | H19: 0 | I19: =SUM(G19:H19) -> 6000 | L19: =SUM(J19:K19) -> 0 | O19: =SUM(M19:N19) -> 0 | R19: =SUM(P19:Q19) -> 0 | U19: =SUM(S19:T19) -> 0 | V19: 0 | W19: 0 | X19: =SUM(V19:W19) -> 0
E20: 613200 | F20: Izdaci za energiju | G20: 13600 | H20: 0 | I20: 13600 | L20: 0 | O20: 0 | R20: 0 | U20: 0 | V20: 0 | W20: 0 | X20: 0
E21: 613300 | F21: Izdaci za komunikaciju i komunalne usluge | G21: 7300 | H21: 0 | I21: 7300 | L21: 0 | O21: 0 | R21: 0 | U21: 0 | V21: 0 | W21: 0 | X21: 0
E22: 613400 | F22: Nabava materijala i sitnog inventara | G22: 5500 | H22: 0 | I22: 5500 | L22: 0 | O22: 0 | R22: 0 | U22: 0 | V22: 0 | W22: 0 | X22: 0
E23: 613500 | F23: Izdaci za usluge prijevoza i goriva | G23: 10000 | H23: 0 | I23: 10000 | L23: 0 | O23: 0 | R23: 0 | U23: 0 | V23: 0 | W23: 0 | X23: 0
E24: 613600 | F24: Unajmljivanje imovine, opreme i nemat.imovine | G24: 0 | H24: 0 | I24: 0 | L24: 0 | O24: 0 | R24: 0 | U24: 0 | V24: 0 | W24: 0 | X24: 0
E25: 613700 | F25: Izdaci za tekuće održavanje | G25: 8000 | H25: 0 | I25: 8000 | L25: 0 | O25: 0 | R25: 0 | U25: 0 | V25: 0 | W25: 0 | X25: 0
E26: 613800 | F26: Izdaci osiguranja, bank.usluga i usluga PP | G26: 340 | H26: 0 | I26: 340 | L26: 0 | O26: 0 | R26: 0 | U26: 0 | V26: 0 | W26: 0 | X26: 0
E27: 613900 | F27: Ugovorene i druge posebne usluge | G27: 215400 | H27: 0 | I27: 215400 | L27: 0 | O27: 0 | R27: 0 | U27: 0 | V27: 0 | W27: 0 | X27: 0
E28: 613900 | F28: Ugovorene i druge posebne usluge - volonteri | G28: 22700 | H28: 0 | I28: 22700 | L28: 0 | O28: 0 | R28: 0 | U28: 0 | V28: 0 | W28: 0 | X28: 0
E29: 821000 | F29: Izdaci za nabavku stalnih sredstava | G29: =SUM(G30:G31) -> 4000 | H29: =SUM(H30:H31) -> 0 | I29: 4000 | J29: 0 | K29: 0 | L29: 0 | M29: 0 | N29: 0 | O29: 0 | P29: 0 | Q29: 0 | R29: 0 | S29: 0 | T29: 0 | U29: 0 | V29: 0 | W29: 0 | X29: 0
E30: 821200 | F30: Nabavka građevina | G30: 2000 | H30: 0 | I30: =SUM(G30:H30) -> 2000 | L30: =SUM(J30:K30) -> 0 | O30: =SUM(M30:N30) -> 0 | R30: =SUM(P30:Q30) -> 0 | U30: =SUM(S30:T30) -> 0 | V30: 0 | W30: 0 | X30: =SUM(V30:W30) -> 0
E31: 821300 | F31: Nabavka opreme | G31: 2000 | H31: 0 | I31: =SUM(G31:H31) -> 2000 | L31: =SUM(J31:K31) -> 0 | O31: =SUM(M31:N31) -> 0 | R31: =SUM(P31:Q31) -> 0 | U31: =SUM(S31:T31) -> 0 | V31: 0 | W31: 0 | X31: =SUM(V31:W31) -> 0
F32: Ukupno za korisnika Skupština Županije Posavske | G32: =G12+G16+G18+G29 -> 742740 | H32: =H12+H16+H18+H29 -> 0 | I32: 742740 | J32: 0 | K32: 0 | L32: 0 | M32: 0 | N32: 0 | O32: 0 | P32: 0 | Q32: 0 | R32: 0 | S32: 0 | T32: 0 | U32: 0 | V32: 0 | W32: 0 | X32: 0
A34: 10 | B34: 01 | C34: 0002 | F34: STRUČNA SLUŽBA SKUPŠTINE
E35: 611000 | F35: Plaće i naknade troškova zaposlenih | G35: =SUM(G36:G38) -> 40820 | H35: =SUM(H36:H38) -> 0 | I35: =SUM(I36:I38) -> 40820 | J35: =SUM(J36:J38) -> 0 | K35: =SUM(K36:K38) -> 0 | L35: =SUM(L36:L38) -> 0 | M35: =SUM(M36:M38) -> 16825 | N35: =SUM(N36:N38) -> 0 | O35: =SUM(O36:O38) -> 16825 | P35: =SUM(P36:P38) -> 0 | Q35: =SUM(Q36:Q38) -> 0 | R35: =SUM(R36:R38) -> 0 | S35: =SUM(S36:S38) -> 0 | T35: =SUM(T36:T38) -> 0 | U35: =SUM(U36:U38) -> 0 | V35: =SUM(V36:V38) -> 16825 | W35: =SUM(W36:W38) -> 0 | X35: =SUM(X36:X38) -> 16825 | Y35: =IF(OR(V35>G35, W35>H35),"Ukupni operativni plan je veći od Proračuna!","") -> 
E36: 611100 | F36: Bruto plaće i naknade | G36: 30500 | H36: 0 | I36: =SUM(G36:H36) -> 30500 | L36: =SUM(J36:K36) -> 0 | M36: 13250 | N36: 0 | O36: =SUM(M36:N36) -> 13250 | R36: =SUM(P36:Q36) -> 0 | U36: =SUM(S36:T36) -> 0 | V36: =S36+P36+M36+J36 -> 13250 | W36: =T36+Q36+N36+K36 -> 0 | X36: =SUM(V36:W36) -> 13250
E37: 611200 | F37: Naknade troškova zaposlenih | G37: 10320 | H37: 0 | I37: =SUM(G37:H37) -> 10320 | L37: =SUM(J37:K37) -> 0 | M37: 3575 | N37: 0 | O37: =SUM(M37:N37) -> 3575 | R37: =SUM(P37:Q37) -> 0 | U37: =SUM(S37:T37) -> 0 | V37: =S37+P37+M37+J37 -> 3575 | W37: 0 | X37: =SUM(V37:W37) -> 3575
E38: 611200 | F38: Naknade troškova zaposlenih - volonteri | G38: 0 | H38: 0 | I38: 0 | L38: 0 | M38: 0 | N38: 0 | O38: 0 | R38: 0 | U38: 0 | V38: 0 | W38: 0 | X38: 0
E39: 612000 | F39: Doprinosi poslodavca | G39: =G40 -> 3400 | H39: =H40 -> 0 | I39: =I40 -> 3400 | J39: =J40 -> 0 | K39: =K40 -> 0 | L39: =L40 -> 0 | M39: =M40 -> 1430 | N39: =N40 -> 0 | O39: =O40 -> 1430 | P39: =P40 -> 0 | Q39: =Q40 -> 0 | R39: =R40 -> 0 | S39: =S40 -> 0 | T39: =T40 -> 0 | U39: =U40 -> 0 | V39: =V40 -> 1430 | W39: =W40 -> 0 | X39: =X40 -> 1430
E40: 612100 | F40: Doprinosi poslodavca | G40: 3400 | H40: 0 | I40: =SUM(G40:H40) -> 3400 | L40: =SUM(J40:K40) -> 0 | M40: 1430 | N40: 0 | O40: =SUM(M40:N40) -> 1430 | R40: =SUM(P40:Q40) -> 0 | U40: =SUM(S40:T40) -> 0 | V40: =S40+P40+M40+J40 -> 1430 | W40: =T40+Q40+N40+K40 -> 0 | X40: =SUM(V40:W40) -> 1430
E41: 613000 | F41: Izdaci za materijal, sitan inventar i usluge | G41: =SUM(G42:G51) -> 1050 | H41: =SUM(H42:H51) -> 0 | I41: =SUM(I42:I51) -> 1050 | J41: =SUM(J42:J51) -> 0 | K41: =SUM(K42:K51) -> 0 | L41: =SUM(L42:L51) -> 0 | M41: =SUM(M42:M51) -> 263 | N41: =SUM(N42:N51) -> 0 | O41: =SUM(O42:O51) -> 263 | P41: =SUM(P42:P51) -> 0 | Q41: =SUM(Q42:Q51) -> 0 | R41: =SUM(R42:R51) -> 0 | S41: =SUM(S42:S51) -> 0 | T41: =SUM(T42:T51) -> 0 | U41: =SUM(U42:U51) -> 0 | V41: =SUM(V42:V51) -> 263 | W41: =SUM(W42:W51) -> 0 | X41: =SUM(X42:X51) -> 263
E42: 613100 | F42: Putni troškovi | G42: 500 | H42: 0 | I42: =SUM(G42:H42) -> 500 | L42: =SUM(J42:K42) -> 0 | M42: 125 | N42: 0 | O42: =SUM(M42:N42) -> 125 | R42: =SUM(P42:Q42) -> 0 | U42: =SUM(S42:T42) -> 0 | V42: =S42+P42+M42+J42 -> 125 | W42: =T42+Q42+N42+K42 -> 0 | X42: =SUM(V42:W42) -> 125
E43: 613200 | F43: Izdaci za energiju | G43: 0 | H43: 0 | I43: 0 | L43: 0 | M43: 0 | N43: 0 | O43: 0 | R43: 0 | U43: 0 | V43: 0 | W43: 0 | X43: 0
E44: 613300 | F44: Izdaci za komunikaciju i komunalne usluge | G44: 0 | H44: 0 | I44: 0 | L44: 0 | M44: 0 | N44: 0 | O44: 0 | R44: 0 | U44: 0 | V44: 0 | W44: 0 | X44: 0
E45: 613400 | F45: Nabava materijala i sitnog inventara | G45: 0 | H45: 0 | I45: 0 | L45: 0 | M45: 0 | N45: 0 | O45: 0 | R45: 0 | U45: 0 | V45: 0 | W45: 0 | X45: 0
E46: 613500 | F46: Izdaci za usluge prijevoza i goriva | G46: 0 | H46: 0 | I46: 0 | L46: 0 | M46: 0 | N46: 0 | O46: 0 | R46: 0 | U46: 0 | V46: 0 | W46: 0 | X46: 0
E47: 613600 | F47: Unajmljivanje imovine, opreme i nemat.imovine | G47: 0 | H47: 0 | I47: 0 | L47: 0 | M47: 0 | N47: 0 | O47: 0 | R47: 0 | U47: 0 | V47: 0 | W47: 0 | X47: 0
E48: 613700 | F48: Izdaci za tekuće održavanje | G48: 0 | H48: 0 | I48: 0 | L48: 0 | M48: 0 | N48: 0 | O48: 0 | R48: 0 | U48: 0 | V48: 0 | W48: 0 | X48: 0
E49: 613800 | F49: Izdaci osiguranja, bank.usluga i usluga PP | G49: 0 | H49: 0 | I49: 0 | L49: 0 | M49: 0 | N49: 0 | O49: 0 | R49: 0 | U49: 0 | V49: 0 | W49: 0 | X49: 0
E50: 613900 | F50: Ugovorene i druge posebne usluge | G50: 550 | H50: 0 | I50: 550 | L50: 0 | M50: 138 | N50: 0 | O50: 138 | R50: 0 | U50: 0 | V50: 138 | W50: 0 | X50: 138
E51: 613900 | F51: Ugovorene i druge posebne usluge - volonteri | G51: 0 | H51: 0 | I51: 0 | L51: 0 | M51: 0 | N51: 0 | O51: 0 | R51: 0 | U51: 0 | V51: 0 | W51: 0 | X51: 0
E52: 821000 | F52: Izdaci za nabavku stalnih sredstava | G52: =SUM(G53:G54) -> 0 | H52: =SUM(H53:H54) -> 0 | I52: =SUM(I53:I54) -> 0 | J52: =SUM(J53:J54) -> 0 | K52: =SUM(K53:K54) -> 0 | L52: =SUM(L53:L54) -> 0 | M52: =SUM(M53:M54) -> 0 | N52: =SUM(N53:N54) -> 0 | O52: =SUM(O53:O54) -> 0 | P52: =SUM(P53:P54) -> 0 | Q52: =SUM(Q53:Q54) -> 0 | R52: =SUM(R53:R54) -> 0 | S52: =SUM(S53:S54) -> 0 | T52: =SUM(T53:T54) -> 0 | U52: =SUM(U53:U54) -> 0 | V52: =SUM(V53:V54) -> 0 | W52: =SUM(W53:W54) -> 0 | X52: =SUM(X53:X54) -> 0
E53: 821200 | F53: Nabavka građevina | G53: 0 | H53: 0 | I53: =SUM(G53:H53) -> 0 | L53: =SUM(J53:K53) -> 0 | M53: 0 | N53: 0 | O53: =SUM(M53:N53) -> 0 | R53: =SUM(P53:Q53) -> 0 | U53: =SUM(S53:T53) -> 0 | V53: =S53+P53+M53+J53 -> 0 | W53: =T53+Q53+N53+K53 -> 0 | X53: =SUM(V53:W53) -> 0
E54: 821300 | F54: Nabavka opreme | G54: 0 | H54: 0 | I54: =SUM(G54:H54) -> 0 | L54: =SUM(J54:K54) -> 0 | M54: 0 | N54: 0 | O54: =SUM(M54:N54) -> 0 | R54: =SUM(P54:Q54) -> 0 | U54: =SUM(S54:T54) -> 0 | V54: 0 | W54: 0 | X54: =SUM(V54:W54) -> 0
F55: Ukupno za korisnika Stručna služba Skupštine | G55: =G35+G39+G41+G52 -> 45270 | H55: =H35+H39+H41+H52 -> 0 | I55: 45270 | J55: 0 | K55: 0 | L55: 0 | M55: 18518 | N55: 0 | O55: 18518 | P55: 0 | Q55: 0 | R55: 0 | S55: 0 | T55: 0 | U55: 0 | V55: 18518 | W55: 0 | X55: 18518
A57: 11 | B57: 01 | C57: 0001 | F57: VLADA ŽUPANIJE POSAVSKE
E58: 600000 | F58: Rashodi - tekuća pričuva | G58: =SUM(G59:G61) -> 945000 | H58: =SUM(H59:H61) -> 0 | I58: =SUM(I59:I61) -> 945000 | J58: 0 | K58: 0 | L58: 0 | M58: 0 | N58: 0 | O58: 0 | P58: 0 | Q58: 0 | R58: 0 | S58: 0 | T58: 0 | U58: 0 | V58: 0 | W58: 0 | X58: 0 | Y58: =IF(OR(V58>G58, W58>H58),"Ukupni operativni plan je veći od Proračuna!","") -> 
E59: 600000 | F59: Tekuća pričuva Vlade | G59: 900000 | H59: 0 | I59: =SUM(G59:H59) -> 900000 | L59: =SUM(J59:K59) -> 0 | O59: =SUM(M59:N59) -> 0 | R59: =SUM(P59:Q59) -> 0 | U59: =SUM(S59:T59) -> 0 | V59: =S59+P59+M59+J59 -> 0 | W59: =T59+Q59+N59+K59 -> 0 | X59: =SUM(V59:W59) -> 0
E60: 600000 | F60: Tekuća pričuva predsjednika Vlade | G60: 30000 | H60: 0 | I60: =SUM(G60:H60) -> 30000 | L60: =SUM(J60:K60) -> 0 | O60: =SUM(M60:N60) -> 0 | R60: =SUM(P60:Q60) -> 0 | U60: =SUM(S60:T60) -> 0 | V60: =S60+P60+M60+J60 -> 0 | W60: =T60+Q60+N60+K60 -> 0 | X60: =SUM(V60:W60) -> 0
E61: 600000 | F61: Tekuća pričuva zamjenika pred.Vlade | G61: 15000 | H61: 0 | I61: 15000 | L61: 0 | O61: 0 | R61: 0 | U61: 0 | V61: 0 | W61: 0 | X61: 0
E62: 611000 | F62: Plaće i naknade troškova zaposlenih | G62: =SUM(G63:G65) -> 136800 | H62: =SUM(H63:H65) -> 0 | I62: =SUM(I63:I65) -> 136800 | J62: 0 | K62: 0 | L62: 0 | M62: =SUM(M63:M65) -> 0 | N62: 0 | O62: 0 | P62: =SUM(P63:P65) -> 0 | Q62: 0 | R62: 0 | S62: =SUM(S63:S65) -> 0 | T62: 0 | U62: 0 | V62: =SUM(V63:V65) -> 0 | W62: 0 | X62: 0 | Y62: =IF(OR(V62>G62, W62>H62),"Ukupni operativni plan je veći od Proračuna!","") -> 
E63: 611100 | F63: Bruto plaće i naknade | G63: 109100 | H63: 0 | I63: =SUM(G63:H63) -> 109100 | L63: =SUM(J63:K63) -> 0 | O63: =SUM(M63:N63) -> 0 | R63: =SUM(P63:Q63) -> 0 | U63: =SUM(S63:T63) -> 0 | V63: =S63+P63+M63+J63 -> 0 | W63: =T63+Q63+N63+K63 -> 0 | X63: =SUM(V63:W63) -> 0
E64: 611200 | F64: Naknade troškova zaposlenih | G64: 24300 | H64: 0 | I64: =SUM(G64:H64) -> 24300 | L64: =SUM(J64:K64) -> 0 | O64: =SUM(M64:N64) -> 0 | R64: =SUM(P64:Q64) -> 0 | U64: =SUM(S64:T64) -> 0 | V64: =S64+P64+M64+J64 -> 0 | W64: =T64+Q64+N64+K64 -> 0 | X64: =SUM(V64:W64) -> 0
E65: 611200 | F65: Naknade troškova zaposlenih - volonteri | G65: 3400 | H65: 0 | I65: 3400 | L65: 0 | O65: 0 | R65: 0 | U65: 0 | V65: 0 | W65: 0 | X65: 0
E66: 612000 | F66: Doprinosi poslodavca | G66: =G67 -> 11900 | H66: =H67 -> 0 | I66: =I67 -> 11900 | J66: 0 | K66: 0 | L66: 0 | M66: =M67 -> 0 | N66: 0 | O66: 0 | P66: =P67 -> 0 | Q66: 0 | R66: 0 | S66: =S67 -> 0 | T66: 0 | U66: 0 | V66: =V67 -> 0 | W66: 0 | X66: 0
E67: 612100 | F67: Doprinosi poslodavca | G67: 11900 | H67: 0 | I67: =SUM(G67:H67) -> 11900 | L67: =SUM(J67:K67) -> 0 | O67: =SUM(M67:N67) -> 0 | R67: =SUM(P67:Q67) -> 0 | U67: =SUM(S67:T67) -> 0 | V67: 0 | W67: 0 | X67: =SUM(V67:W67) -> 0
E68: 613000 | F68: Izdaci za materijal, sitan inventar i usluge | G68: =SUM(G69:G79) -> 209500 | H68: =SUM(H69:H79) -> 0 | I68: =SUM(I69:I79) -> 209500 | J68: 0 | K68: 0 | L68: 0 | M68: =SUM(M69:M79) -> 0 | N68: 0 | O68: 0 | P68: =SUM(P69:P79) -> 0 | Q68: 0 | R68: 0 | S68: =SUM(S69:S79) -> 0 | T68: 0 | U68: 0 | V68: =SUM(V69:V79) -> 0 | W68: 0 | X68: 0
E69: 613100 | F69: Putni troškovi | G69: 14000 | H69: 0 | I69: =SUM(G69:H69) -> 14000 | L69: =SUM(J69:K69) -> 0 | O69: =SUM(M69:N69) -> 0 | R69: =SUM(P69:Q69) -> 0 | U69: =SUM(S69:T69) -> 0 | V69: 0 | W69: 0 | X69: =SUM(V69:W69) -> 0
E70: 613200 | F70: Izdaci za energiju | G70: 0 | H70: 0 | I70: 0 | L70: 0 | O70: 0 | R70: 0 | U70: 0 | V70: 0 | W70: 0 | X70: 0
E71: 613300 | F71: Izdaci za komunikaciju i komunalne usluge | G71: 5500 | H71: 0 | I71: 5500 | L71: 0 | O71: 0 | R71: 0 | U71: 0 | V71: 0 | W71: 0 | X71: 0
E72: 613400 | F72: Nabava materijala i sitnog inventara | G72: 1500 | H72: 0 | I72: 1500 | L72: 0 | O72: 0 | R72: 0 | U72: 0 | V72: 0 | W72: 0 | X72: 0
E73: 613500 | F73: Izdaci za usluge prijevoza i goriva | G73: 1500 | H73: 0 | I73: 1500 | L73: 0 | O73: 0 | R73: 0 | U73: 0 | V73: 0 | W73: 0 | X73: 0
E74: 613600 | F74: Unajmljivanje imovine, opreme i nemat.imovine | G74: 0 | H74: 0 | I74: 0 | L74: 0 | O74: 0 | R74: 0 | U74: 0 | V74: 0 | W74: 0 | X74: 0
E75: 613700 | F75: Izdaci za tekuće održavanje | G75: 7000 | H75: 0 | I75: 7000 | L75: 0 | O75: 0 | R75: 0 | U75: 0 | V75: 0 | W75: 0 | X75: 0
E76: 613800 | F76: Izdaci osiguranja, bank.usluga i usluga PP | G76: 2600 | H76: 0 | I76: 2600 | L76: 0 | O76: 0 | R76: 0 | U76: 0 | V76: 0 | W76: 0 | X76: 0
E77: 613900 | F77: Ugovorene i druge posebne usluge | G77: 138100 | H77: 0 | I77: 138100 | L77: 0 | O77: 0 | R77: 0 | U77: 0 | V77: 0 | W77: 0 | X77: 0
E78: 613900 | F78: Agencija za državnu službu | G78: 36000 | H78: 0 | I78: 36000 | L78: 0 | O78: 0 | R78: 0 | U78: 0 | V78: 0 | W78: 0 | X78: 0
E79: 613900 | F79: Ugovorene i druge posebne usluge - volonteri | G79: 3300 | H79: 0 | I79: 3300 | L79: 0 | O79: 0 | R79: 0 | U79: 0 | V79: 0 | W79: 0 | X79: 0
E80: 614000 | F80: Tekući grantovi i drugi tekući rashodi | G80: =SUM(G81:G90) -> 705290 | H80: =SUM(H81:H90) -> 244710 | I80: =SUM(I81:I90) -> 950000 | J80: =SUM(J81:J90) -> 0 | K80: 0 | L80: =SUM(L81:L90) -> 0 | M80: =SUM(M81:M90) -> 0 | N80: 0 | O80: =SUM(O81:O90) -> 0 | P80: =SUM(P81:P90) -> 0 | Q80: 0 | R80: =SUM(R81:R90) -> 0 | S80: =SUM(S81:S90) -> 0 | T80: 0 | U80: =SUM(U81:U90) -> 0 | V80: =SUM(V81:V90) -> 0 | W80: 0 | X80: =SUM(X81:X90) -> 0
E81: 614100 | F81: Grant za sanaciju šteta uzrokovanih poplavom | G81: =290000-244710 -> 45290 | H81: 244710 | I81: =SUM(G81:H81) -> 290000 | L81: =SUM(J81:K81) -> 0 | O81: =SUM(M81:N81) -> 0 | R81: =SUM(P81:Q81) -> 0 | U81: =SUM(S81:T81) -> 0 | V81: 0 | W81: 0 | X81: =SUM(V81:W81) -> 0
E82: 614100 | F82: Grant za Sveučilište u Mostaru | G82: 200000 | H82: 0 | I82: 200000 | L82: 0 | O82: 0 | R82: 0 | U82: 0 | V82: 0 | W82: 0 | X82: 0
E83: 614200 | F83: Grant za sufinanc.nabavke udžbenika učenicima | G83: 100000 | H83: 0 | I83: 100000 | L83: 0 | O83: 0 | R83: 0 | U83: 0 | V83: 0 | W83: 0 | X83: 0
E84: 614300 | F84: Grantovi nepro.organizacijama i udruženjima građana | G84: 105000 | H84: 0 | I84: 105000 | L84: 0 | O84: 0 | R84: 0 | U84: 0 | V84: 0 | W84: 0 | X84: 0
E85: 614300 | F85: Grant za Crveni križ Županije Posavske | G85: 30000 | H85: 0 | I85: 30000 | L85: 0 | O85: 0 | R85: 0 | U85: 0 | V85: 0 | W85: 0 | X85: 0
E86: 614300 | F86: Grant za Kuću nade Odžak | G86: 15000 | H86: 0 | I86: 15000 | L86: 0 | O86: 0 | R86: 0 | U86: 0 | V86: 0 | W86: 0 | X86: 0
E87: 614300 | F87: Grant za udr.roditelja djece s pos.potrebama Orašje | G87: 15000 | H87: 0 | I87: 15000 | L87: 0 | O87: 0 | R87: 0 | U87: 0 | V87: 0 | W87: 0 | X87: 0
E88: 614300 | F88: Grant za udr.roditelja djce s pos.potr.Angelus Domalj. | G88: 5000 | H88: 0 | I88: 5000 | L88: 0 | O88: 0 | R88: 0 | U88: 0 | V88: 0 | W88: 0 | X88: 0
E89: 614300 | F89: Grant za Gospodarsku komoru ŽP | G89: 30000 | H89: 0 | I89: 30000 | L89: 0 | O89: 0 | R89: 0 | U89: 0 | V89: 0 | W89: 0 | X89: 0
E90: 614300 | F90: Grantovi političkim strankama | G90: 160000 | H90: 0 | I90: 160000 | L90: 0 | O90: 0 | R90: 0 | U90: 0 | V90: 0 | W90: 0 | X90: 0
E91: 615000 | F91: Kapitalni grantovi | G91: =G92 -> 500000 | H91: =H92 -> 0 | I91: =I92 -> 500000 | J91: =J92 -> 0 | K91: 0 | L91: =L92 -> 0 | M91: =M92 -> 0 | N91: 0 | O91: =O92 -> 0 | P91: =P92 -> 0 | Q91: 0 | R91: =R92 -> 0 | S91: =S92 -> 0 | T91: 0 | U91: =U92 -> 0 | V91: =V92 -> 0 | W91: 0 | X91: =X92 -> 0
E92: 615100 | F92: Kapitalni grantovi | G92: 500000 | H92: 0 | I92: =SUM(G92:H92) -> 500000 | L92: =SUM(J92:K92) -> 0 | O92: =SUM(M92:N92) -> 0 | R92: =SUM(P92:Q92) -> 0 | U92: =SUM(S92:T92) -> 0 | V92: 0 | W92: 0 | X92: =SUM(V92:W92) -> 0
E93: 821000 | F93: Izdaci za nabavku stalnih sredstava | G93: =SUM(G94:G96) -> 168000 | H93: =SUM(H94:H96) -> 186830 | I93: 354830 | J93: 0 | K93: 0 | L93: 0 | M93: 0 | N93: 0 | O93: 0 | P93: 0 | Q93: 0 | R93: 0 | S93: 0 | T93: 0 | U93: 0 | V93: 0 | W93: 0 | X93: 0
E94: 821200 | F94: Nabavka građevina | G94: 8800 | H94: 0 | I94: =SUM(G94:H94) -> 8800 | L94: =SUM(J94:K94) -> 0 | O94: =SUM(M94:N94) -> 0 | R94: =SUM(P94:Q94) -> 0 | U94: =SUM(S94:T94) -> 0 | V94: 0 | W94: 0 | X94: =SUM(V94:W94) -> 0
E95: 821300 | F95: Nabavka opreme | G95: 59200 | H95: 0 | I95: =SUM(G95:H95) -> 59200 | L95: =SUM(J95:K95) -> 0 | O95: =SUM(M95:N95) -> 0 | R95: =SUM(P95:Q95) -> 0 | U95: =SUM(S95:T95) -> 0 | V95: 0 | W95: 0 | X95: =SUM(V95:W95) -> 0
E96: 821500 | F96: Nabavka stalnih sredstava u obliku prava | G96: 100000 | H96: 186830 | I96: =SUM(G96:H96) -> 286830 | L96: =SUM(J96:K96) -> 0 | O96: =SUM(M96:N96) -> 0 | R96: =SUM(P96:Q96) -> 0 | U96: =SUM(S96:T96) -> 0 | V96: =S96+P96+M96+J96 -> 0 | W96: =T96+Q96+N96+K96 -> 0 | X96: =SUM(V96:W96) -> 0 | Y96: =IF(OR(V96>G96, W96>H96),"Ukupni operativni plan je veći od Proračuna!","") -> 
F97: Ukupno za korisnika Vlada Županije Posavske | G97: =G58+G62+G66+G68+G80+G91+G93 -> 2676490 | H97: 431540 | I97: 3108030 | J97: 0 | K97: 0 | L97: 0 | M97: 0 | N97: 0 | O97: 0 | P97: 0 | Q97: 0 | R97: 0 | S97: 0 | T97: 0 | U97: 0 | V97: 0 | W97: 0 | X97: 0
A99: 11 | B99: 01 | C99: 0002 | F99: URED ZA RASELJENE
E100: 611000 | F100: Plaće i naknade troškova zaposlenih | G100: =SUM(G101:G103) -> 6240 | H100: =SUM(H101:H103) -> 0 | I100: =SUM(I101:I103) -> 6240 | J100: =SUM(J101:J103) -> 0 | K100: =SUM(K101:K103) -> 0 | L100: =SUM(L101:L103) -> 0 | M100: =SUM(M101:M103) -> 0 | N100: =SUM(N101:N103) -> 0 | O100: =SUM(O101:O103) -> 0 | P100: =SUM(P101:P103) -> 0 | Q100: =SUM(Q101:Q103) -> 0 | R100: =SUM(R101:R103) -> 0 | S100: =SUM(S101:S103) -> 0 | T100: =SUM(T101:T103) -> 0 | U100: =SUM(U101:U103) -> 0 | V100: =SUM(V101:V103) -> 0 | W100: =SUM(W101:W103) -> 0 | X100: =SUM(X101:X103) -> 0
E101: 611100 | F101: Bruto plaće i naknade | G101: 2000 | H101: 0 | I101: =SUM(G101:H101) -> 2000 | L101: =SUM(J101:K101) -> 0 | O101: =SUM(M101:N101) -> 0 | R101: =SUM(P101:Q101) -> 0 | U101: =SUM(S101:T101) -> 0 | V101: =S101+P101+M101+J101 -> 0 | W101: =T101+Q101+N101+K101 -> 0 | X101: =SUM(V101:W101) -> 0
E102: 611200 | F102: Naknade troškova zaposlenih | G102: 840 | H102: 0 | I102: =SUM(G102:H102) -> 840 | L102: =SUM(J102:K102) -> 0 | O102: =SUM(M102:N102) -> 0 | R102: =SUM(P102:Q102) -> 0 | U102: =SUM(S102:T102) -> 0 | V102: 0 | W102: 0 | X102: =SUM(V102:W102) -> 0
E103: 611200 | F103: Naknade troškova zaposlenih - volonteri | G103: 3400 | H103: 0 | I103: 3400 | L103: 0 | O103: 0 | R103: 0 | U103: 0 | V103: 0 | W103: 0 | X103: 0
E104: 612000 | F104: Doprinosi poslodavca | G104: =G105 -> 300 | H104: =H105 -> 0 | I104: =I105 -> 300 | J104: =J105 -> 0 | K104: =K105 -> 0 | L104: =L105 -> 0 | M104: =M105 -> 0 | N104: =N105 -> 0 | O104: =O105 -> 0 | P104: =P105 -> 0 | Q104: =Q105 -> 0 | R104: =R105 -> 0 | S104: =S105 -> 0 | T104: =T105 -> 0 | U104: =U105 -> 0 | V104: =V105 -> 0 | W104: =W105 -> 0 | X104: =X105 -> 0
E105: 612100 | F105: Doprinosi poslodavca | G105: 300 | H105: 0 | I105: =SUM(G105:H105) -> 300 | L105: =SUM(J105:K105) -> 0 | O105: =SUM(M105:N105) -> 0 | R105: =SUM(P105:Q105) -> 0 | U105: =SUM(S105:T105) -> 0 | V105: =S105+P105+M105+J105 -> 0 | W105: =T105+Q105+N105+K105 -> 0 | X105: =SUM(V105:W105) -> 0
E106: 613000 | F106: Izdaci za materijal, sitan inventar i usluge | G106: =SUM(G107:G116) -> 14100 | H106: =SUM(H107:H116) -> 0 | I106: =SUM(I107:I116) -> 14100 | J106: =SUM(J107:J116) -> 0 | K106: =SUM(K107:K116) -> 0 | L106: =SUM(L107:L116) -> 0 | M106: =SUM(M107:M116) -> 0 | N106: =SUM(N107:N116) -> 0 | O106: =SUM(O107:O116) -> 0 | P106: =SUM(P107:P116) -> 0 | Q106: =SUM(Q107:Q116) -> 0 | R106: =SUM(R107:R116) -> 0 | S106: =SUM(S107:S116) -> 0 | T106: =SUM(T107:T116) -> 0 | U106: =SUM(U107:U116) -> 0 | V106: =SUM(V107:V116) -> 0 | W106: =SUM(W107:W116) -> 0 | X106: =SUM(X107:X116) -> 0
E107: 613100 | F107: Putni troškovi | G107: 300 | H107: 0 | I107: =SUM(G107:H107) -> 300 | L107: =SUM(J107:K107) -> 0 | O107: =SUM(M107:N107) -> 0 | R107: =SUM(P107:Q107) -> 0 | U107: =SUM(S107:T107) -> 0 | V107: =S107+P107+M107+J107 -> 0 | W107: =T107+Q107+N107+K107 -> 0 | X107: =SUM(V107:W107) -> 0
E108: 613200 | F108: Izdaci za energiju | G108: 0 | H108: 0 | I108: 0 | L108: 0 | O108: 0 | R108: 0 | U108: 0 | V108: 0 | W108: 0 | X108: 0
E109: 613300 | F109: Izdaci za komunikaciju i komunalne usluge | G109: 1100 | H109: 0 | I109: 1100 | L109: 0 | O109: 0 | R109: 0 | U109: 0 | V109: 0 | W109: 0 | X109: 0
E110: 613400 | F110: Nabava materijala i sitnog inventara | G110: 0 | H110: 0 | I110: 0 | L110: 0 | O110: 0 | R110: 0 | U110: 0 | V110: 0 | W110: 0 | X110: 0
E111: 613500 | F111: Izdaci za usluge prijevoza i goriva | G111: 0 | H111: 0 | I111: 0 | L111: 0 | O111: 0 | R111: 0 | U111: 0 | V111: 0 | W111: 0 | X111: 0
E112: 613600 | F112: Unajmljivanje imovine, opreme i nemat.imovine | G112: 0 | H112: 0 | I112: 0 | L112: 0 | O112: 0 | R112: 0 | U112: 0 | V112: 0 | W112: 0 | X112: 0
E113: 613700 | F113: Izdaci za tekuće održavanje | G113: 400 | H113: 0 | I113: 400 | L113: 0 | O113: 0 | R113: 0 | U113: 0 | V113: 0 | W113: 0 | X113: 0
E114: 613800 | F114: Izdaci osiguranja, bank.usluga i usluga PP | G114: 0 | H114: 0 | I114: 0 | L114: 0 | O114: 0 | R114: 0 | U114: 0 | V114: 0 | W114: 0 | X114: 0
E115: 613900 | F115: Ugovorene i druge posebne usluge | G115: 9000 | H115: 0 | I115: 9000 | L115: 0 | O115: 0 | R115: 0 | U115: 0 | V115: 0 | W115: 0 | X115: 0
E116: 613900 | F116: Ugovorene i druge posebne usluge - volonteri | G116: 3300 | H116: 0 | I116: 3300 | L116: 0 | O116: 0 | R116: 0 | U116: 0 | V116: 0 | W116: 0 | X116: 0
E117: 614000 | F117: Tekući grantovi i drugi tekući rashodi | G117: =G118 -> 12000 | H117: 0 | I117: 12000 | J117: 0 | K117: 0 | L117: 0 | M117: 0 | N117: 0 | O117: 0 | P117: 0 | Q117: 0 | R117: 0 | S117: 0 | T117: 0 | U117: 0 | V117: 0 | W117: 0 | X117: 0
E118: 614200 | F118: Grantovi za povratak raseljenih osoba | G118: 12000 | H118: 0 | I118: =SUM(G118:H118) -> 12000 | L118: =SUM(J118:K118) -> 0 | O118: =SUM(M118:N118) -> 0 | R118: =SUM(P118:Q118) -> 0 | U118: =SUM(S118:T118) -> 0 | V118: =S118+P118+M118+J118 -> 0 | W118: =T118+Q118+N118+K118 -> 0 | X118: =SUM(V118:W118) -> 0
E119: 821000 | F119: Izdaci za nabavku stalnih sredstava | G119: =SUM(G120:G121) -> 1000 | H119: =SUM(H120:H121) -> 0 | I119: =SUM(I120:I121) -> 1000 | J119: =SUM(J120:J121) -> 0 | K119: =SUM(K120:K121) -> 0 | L119: =SUM(L120:L121) -> 0 | M119: =SUM(M120:M121) -> 0 | N119: =SUM(N120:N121) -> 0 | O119: =SUM(O120:O121) -> 0 | P119: =SUM(P120:P121) -> 0 | Q119: =SUM(Q120:Q121) -> 0 | R119: =SUM(R120:R121) -> 0 | S119: =SUM(S120:S121) -> 0 | T119: =SUM(T120:T121) -> 0 | U119: =SUM(U120:U121) -> 0 | V119: =SUM(V120:V121) -> 0 | W119: =SUM(W120:W121) -> 0 | X119: =SUM(X120:X121) -> 0
E120: 821200 | F120: Nabavka građevina | G120: 0 | H120: 0 | I120: =SUM(G120:H120) -> 0 | L120: =SUM(J120:K120) -> 0 | O120: =SUM(M120:N120) -> 0 | R120: =SUM(P120:Q120) -> 0 | U120: =SUM(S120:T120) -> 0 | V120: =S120+P120+M120+J120 -> 0 | W120: =T120+Q120+N120+K120 -> 0 | X120: =SUM(V120:W120) -> 0
E121: 821300 | F121: Nabavka opreme | G121: 1000 | H121: 0 | I121: =SUM(G121:H121) -> 1000 | L121: =SUM(J121:K121) -> 0 | O121: =SUM(M121:N121) -> 0 | R121: =SUM(P121:Q121) -> 0 | U121: =SUM(S121:T121) -> 0 | V121: 0 | W121: 0 | X121: =SUM(V121:W121) -> 0
F122: Ukupno za korisnika Ured za raseljene | G122: =G100+G104+G106+G117+G119 -> 33640 | H122: =H100+H104+H106+H117+H119 -> 0 | I122: 33640 | J122: 0 | K122: 0 | L122: 0 | M122: 0 | N122: 0 | O122: 0 | P122: 0 | Q122: 0 | R122: 0 | S122: 0 | T122: 0 | U122: 0 | V122: 0 | W122: 0 | X122: 0
A124: 11 | B124: 01 | C124: 0003 | F124: URED ZA ZAKONODAVSTVO
E125: 611000 | F125: Plaće i naknade troškova zaposlenih | G125: =SUM(G126:G128) -> 30840 | H125: =SUM(H126:H128) -> 0 | I125: =SUM(I126:I128) -> 30840 | J125: =SUM(J126:J128) -> 0 | K125: =SUM(K126:K128) -> 0 | L125: =SUM(L126:L128) -> 0 | M125: =SUM(M126:M128) -> 0 | N125: =SUM(N126:N128) -> 0 | O125: =SUM(O126:O128) -> 0 | P125: =SUM(P126:P128) -> 0 | Q125: =SUM(Q126:Q128) -> 0 | R125: =SUM(R126:R128) -> 0 | S125: =SUM(S126:S128) -> 0 | T125: =SUM(T126:T128) -> 0 | U125: =SUM(U126:U128) -> 0 | V125: =SUM(V126:V128) -> 0 | W125: =SUM(W126:W128) -> 0 | X125: =SUM(X126:X128) -> 0
E126: 611100 | F126: Bruto plaće i naknade | G126: 27800 | H126: 0 | I126: =SUM(G126:H126) -> 27800 | L126: =SUM(J126:K126) -> 0 | O126: =SUM(M126:N126) -> 0 | R126: =SUM(P126:Q126) -> 0 | U126: =SUM(S126:T126) -> 0 | V126: =S126+P126+M126+J126 -> 0 | W126: =T126+Q126+N126+K126 -> 0 | X126: =SUM(V126:W126) -> 0
E127: 611200 | F127: Naknade troškova zaposlenih | G127: 3040 | H127: 0 | I127: =SUM(G127:H127) -> 3040 | L127: =SUM(J127:K127) -> 0 | O127: =SUM(M127:N127) -> 0 | R127: =SUM(P127:Q127) -> 0 | U127: =SUM(S127:T127) -> 0 | V127: 0 | W127: 0 | X127: =SUM(V127:W127) -> 0 | Y127: =IF(OR(V127>G127, W127>H127),"Ukupni operativni plan je veći od Proračuna!","") -> 
E128: 611200 | F128: Naknade troškova zaposlenih - volonteri | G128: 0 | H128: 0 | I128: 0 | L128: 0 | O128: 0 | R128: 0 | U128: 0 | V128: 0 | W128: 0 | X128: 0
E129: 612000 | F129: Doprinosi poslodavca | G129: =G130 -> 3100 | H129: =H130 -> 0 | I129: =I130 -> 3100 | J129: =J130 -> 0 | K129: =K130 -> 0 | L129: =L130 -> 0 | M129: =M130 -> 0 | N129: =N130 -> 0 | O129: =O130 -> 0 | P129: =P130 -> 0 | Q129: =Q130 -> 0 | R129: =R130 -> 0 | S129: =S130 -> 0 | T129: =T130 -> 0 | U129: =U130 -> 0 | V129: =V130 -> 0 | W129: =W130 -> 0 | X129: =X130 -> 0
E130: 612100 | F130: Doprinosi poslodavca | G130: 3100 | H130: 0 | I130: =SUM(G130:H130) -> 3100 | L130: =SUM(J130:K130) -> 0 | O130: =SUM(M130:N130) -> 0 | R130: =SUM(P130:Q130) -> 0 | U130: =SUM(S130:T130) -> 0 | V130: =S130+P130+M130+J130 -> 0 | W130: =T130+Q130+N130+K130 -> 0 | X130: =SUM(V130:W130) -> 0
E131: 613000 | F131: Izdaci za materijal, sitan inventar i usluge | G131: =SUM(G132:G141) -> 23300 | H131: =SUM(H132:H141) -> 0 | I131: =SUM(I132:I141) -> 23300 | J131: =SUM(J132:J141) -> 0 | K131: =SUM(K132:K141) -> 0 | L131: =SUM(L132:L141) -> 0 | M131: =SUM(M132:M141) -> 0 | N131: =SUM(N132:N141) -> 0 | O131: =SUM(O132:O141) -> 0 | P131: =SUM(P132:P141) -> 0 | Q131: =SUM(Q132:Q141) -> 0 | R131: =SUM(R132:R141) -> 0 | S131: =SUM(S132:S141) -> 0 | T131: =SUM(T132:T141) -> 0 | U131: =SUM(U132:U141) -> 0 | V131: =SUM(V132:V141) -> 0 | W131: =SUM(W132:W141) -> 0 | X131: =SUM(X132:X141) -> 0
E132: 613100 | F132: Putni troškovi | G132: 300 | H132: 0 | I132: =SUM(G132:H132) -> 300 | L132: =SUM(J132:K132) -> 0 | O132: =SUM(M132:N132) -> 0 | R132: =SUM(P132:Q132) -> 0 | U132: =SUM(S132:T132) -> 0 | V132: =S132+P132+M132+J132 -> 0 | W132: =T132+Q132+N132+K132 -> 0 | X132: =SUM(V132:W132) -> 0
E133: 613200 | F133: Izdaci za energiju | G133: 0 | H133: 0 | I133: 0 | L133: 0 | O133: 0 | R133: 0 | U133: 0 | V133: 0 | W133: 0 | X133: 0
E134: 613300 | F134: Izdaci za komunikaciju i komunalne usluge | G134: 0 | H134: 0 | I134: 0 | L134: 0 | O134: 0 | R134: 0 | U134: 0 | V134: 0 | W134: 0 | X134: 0
E135: 613400 | F135: Nabava materijala i sitnog inventara | G135: 0 | H135: 0 | I135: 0 | L135: 0 | O135: 0 | R135: 0 | U135: 0 | V135: 0 | W135: 0 | X135: 0
E136: 613500 | F136: Izdaci za usluge prijevoza i goriva | G136: 0 | H136: 0 | I136: 0 | L136: 0 | O136: 0 | R136: 0 | U136: 0 | V136: 0 | W136: 0 | X136: 0
E137: 613600 | F137: Unajmljivanje imovine, opreme i nemat.imovine | G137: 0 | H137: 0 | I137: 0 | L137: 0 | O137: 0 | R137: 0 | U137: 0 | V137: 0 | W137: 0 | X137: 0
E138: 613700 | F138: Izdaci za tekuće održavanje | G138: 0 | H138: 0 | I138: 0 | L138: 0 | O138: 0 | R138: 0 | U138: 0 | V138: 0 | W138: 0 | X138: 0
E139: 613800 | F139: Izdaci osiguranja, bank.usluga i usluga PP | G139: 0 | H139: 0 | I139: 0 | L139: 0 | O139: 0 | R139: 0 | U139: 0 | V139: 0 | W139: 0 | X139: 0
E140: 613900 | F140: Ugovorene i druge posebne usluge | G140: 23000 | H140: 0 | I140: 23000 | L140: 0 | O140: 0 | R140: 0 | U140: 0 | V140: 0 | W140: 0 | X140: 0
E141: 613900 | F141: Ugovorene i druge posebne usluge - volonteri | G141: 0 | H141: 0 | I141: 0 | L141: 0 | O141: 0 | R141: 0 | U141: 0 | V141: 0 | W141: 0 | X141: 0
E142: 821000 | F142: Izdaci za nabavku stalnih sredstava | G142: =SUM(G143:G144) -> 0 | H142: =SUM(H143:H144) -> 0 | I142: =SUM(I143:I144) -> 0 | J142: =SUM(J143:J144) -> 0 | K142: =SUM(K143:K144) -> 0 | L142: =SUM(L143:L144) -> 0 | M142: =SUM(M143:M144) -> 0 | N142: =SUM(N143:N144) -> 0 | O142: =SUM(O143:O144) -> 0 | P142: =SUM(P143:P144) -> 0 | Q142: =SUM(Q143:Q144) -> 0 | R142: =SUM(R143:R144) -> 0 | S142: =SUM(S143:S144) -> 0 | T142: =SUM(T143:T144) -> 0 | U142: =SUM(U143:U144) -> 0 | V142: =SUM(V143:V144) -> 0 | W142: =SUM(W143:W144) -> 0 | X142: =SUM(X143:X144) -> 0
E143: 821200 | F143: Nabavka građevina | G143: 0 | H143: 0 | I143: =SUM(G143:H143) -> 0 | L143: =SUM(J143:K143) -> 0 | O143: =SUM(M143:N143) -> 0 | R143: =SUM(P143:Q143) -> 0 | U143: =SUM(S143:T143) -> 0 | V143: =S143+P143+M143+J143 -> 0 | W143: =T143+Q143+N143+K143 -> 0 | X143: =SUM(V143:W143) -> 0
E144: 821300 | F144: Nabavka opreme | G144: 0 | H144: 0 | I144: =SUM(G144:H144) -> 0 | L144: =SUM(J144:K144) -> 0 | O144: =SUM(M144:N144) -> 0 | R144: =SUM(P144:Q144) -> 0 | U144: =SUM(S144:T144) -> 0 | V144: 0 | W144: 0 | X144: =SUM(V144:W144) -> 0
F145: Ukupno za korisnika Ured za zakonodavstvo | G145: =G125+G129+G131+G142 -> 57240 | H145: =H125+H129+H131+H142 -> 0 | I145: 57240 | J145: 0 | K145: 0 | L145: 0 | M145: 0 | N145: 0 | O145: 0 | P145: 0 | Q145: 0 | R145: 0 | S145: 0 | T145: 0 | U145: 0 | V145: 0 | W145: 0 | X145: 0
A147: 11 | B147: 01 | C147: 0004 | F147: SLUŽBA ZA ODNOSE S JAVNOŠĆU
E148: 611000 | F148: Plaće i naknade troškova zaposlenih | G148: =SUM(G149:G151) -> 75820 | H148: =SUM(H149:H151) -> 0 | I148: =SUM(I149:I151) -> 75820 | J148: =SUM(J149:J151) -> 0 | K148: =SUM(K149:K151) -> 0 | L148: =SUM(L149:L151) -> 0 | M148: =SUM(M149:M151) -> 18700 | N148: =SUM(N149:N151) -> 0 | O148: =SUM(O149:O151) -> 18700 | P148: =SUM(P149:P151) -> 0 | Q148: =SUM(Q149:Q151) -> 0 | R148: =SUM(R149:R151) -> 0 | S148: =SUM(S149:S151) -> 0 | T148: =SUM(T149:T151) -> 0 | U148: =SUM(U149:U151) -> 0 | V148: =SUM(V149:V151) -> 18700 | W148: =SUM(W149:W151) -> 0 | X148: =SUM(X149:X151) -> 18700
E149: 611100 | F149: Bruto plaće i naknade | G149: 61200 | H149: 0 | I149: =SUM(G149:H149) -> 61200 | L149: =SUM(J149:K149) -> 0 | M149: 15300 | N149: 0 | O149: =SUM(M149:N149) -> 15300 | R149: =SUM(P149:Q149) -> 0 | U149: =SUM(S149:T149) -> 0 | V149: =S149+P149+M149+J149 -> 15300 | W149: =T149+Q149+N149+K149 -> 0 | X149: =SUM(V149:W149) -> 15300
E150: 611200 | F150: Naknade troškova zaposlenih | G150: 11520 | H150: 0 | I150: =SUM(G150:H150) -> 11520 | L150: =SUM(J150:K150) -> 0 | M150: 2700 | N150: 0 | O150: =SUM(M150:N150) -> 2700 | R150: =SUM(P150:Q150) -> 0 | U150: =SUM(S150:T150) -> 0 | V150: 2700 | W150: 0 | X150: =SUM(V150:W150) -> 2700
E151: 611200 | F151: Naknade troškova zaposlenih - volonteri | G151: 3100 | H151: 0 | I151: =SUM(G151:H151) -> 3100 | L151: 0 | M151: 700 | N151: 0 | O151: 700 | R151: 0 | U151: 0 | V151: 700 | W151: 0 | X151: 700
E152: 612000 | F152: Doprinosi poslodavca | G152: =G153 -> 6800 | H152: =H153 -> 0 | I152: =I153 -> 6800 | J152: =J153 -> 0 | K152: =K153 -> 0 | L152: =L153 -> 0 | M152: =M153 -> 1700 | N152: =N153 -> 0 | O152: =O153 -> 1700 | P152: =P153 -> 0 | Q152: =Q153 -> 0 | R152: =R153 -> 0 | S152: =S153 -> 0 | T152: =T153 -> 0 | U152: =U153 -> 0 | V152: =V153 -> 1700 | W152: =W153 -> 0 | X152: =X153 -> 1700
E153: 612100 | F153: Doprinosi poslodavca | G153: 6800 | H153: 0 | I153: =SUM(G153:H153) -> 6800 | L153: =SUM(J153:K153) -> 0 | M153: 1700 | N153: 0 | O153: =SUM(M153:N153) -> 1700 | R153: =SUM(P153:Q153) -> 0 | U153: =SUM(S153:T153) -> 0 | V153: =S153+P153+M153+J153 -> 1700 | W153: =T153+Q153+N153+K153 -> 0 | X153: =SUM(V153:W153) -> 1700
E154: 613000 | F154: Izdaci za materijal, sitan inventar i usluge | G154: =SUM(G155:G164) -> 16200 | H154: =SUM(H155:H164) -> 0 | I154: =SUM(I155:I164) -> 16200 | J154: =SUM(J155:J164) -> 0 | K154: =SUM(K155:K164) -> 0 | L154: =SUM(L155:L164) -> 0 | M154: =SUM(M155:M164) -> 5050 | N154: =SUM(N155:N164) -> 0 | O154: =SUM(O155:O164) -> 5050 | P154: =SUM(P155:P164) -> 0 | Q154: =SUM(Q155:Q164) -> 0 | R154: =SUM(R155:R164) -> 0 | S154: =SUM(S155:S164) -> 0 | T154: =SUM(T155:T164) -> 0 | U154: =SUM(U155:U164) -> 0 | V154: =SUM(V155:V164) -> 5050 | W154: =SUM(W155:W164) -> 0 | X154: =SUM(X155:X164) -> 5050
E155: 613100 | F155: Putni troškovi | G155: 950 | H155: 0 | I155: =SUM(G155:H155) -> 950 | L155: =SUM(J155:K155) -> 0 | M155: 500 | N155: 0 | O155: =SUM(M155:N155) -> 500 | R155: =SUM(P155:Q155) -> 0 | U155: =SUM(S155:T155) -> 0 | V155: =S155+P155+M155+J155 -> 500 | W155: =T155+Q155+N155+K155 -> 0 | X155: =SUM(V155:W155) -> 500
E156: 613200 | F156: Izdaci za energiju | G156: 0 | H156: 0 | I156: 0 | L156: 0 | M156: 0 | N156: 0 | O156: 0 | R156: 0 | U156: 0 | V156: 0 | W156: 0 | X156: 0
E157: 613300 | F157: Izdaci za komunikaciju i komunalne usluge | G157: 2500 | H157: 0 | I157: 2500 | L157: 0 | M157: 625 | N157: 0 | O157: 625 | R157: 0 | U157: 0 | V157: 625 | W157: 0 | X157: 625
E158: 613400 | F158: Nabava materijala i sitnog inventara | G158: 0 | H158: 0 | I158: 0 | L158: 0 | M158: 0 | N158: 0 | O158: 0 | R158: 0 | U158: 0 | V158: 0 | W158: 0 | X158: 0
E159: 613500 | F159: Izdaci za usluge prijevoza i goriva | G159: 0 | H159: 0 | I159: 0 | L159: 0 | M159: 0 | N159: 0 | O159: 0 | R159: 0 | U159: 0 | V159: 0 | W159: 0 | X159: 0
E160: 613600 | F160: Unajmljivanje imovine, opreme i nemat.imovine | G160: 0 | H160: 0 | I160: 0 | L160: 0 | M160: 0 | N160: 0 | O160: 0 | R160: 0 | U160: 0 | V160: 0 | W160: 0 | X160: 0
E161: 613700 | F161: Izdaci za tekuće održavanje | G161: 400 | H161: 0 | I161: 400 | L161: 0 | M161: 100 | N161: 0 | O161: 100 | R161: 0 | U161: 0 | V161: 100 | W161: 0 | X161: 100
E162: 613800 | F162: Izdaci osiguranja, bank.usluga i usluga PP | G162: 0 | H162: 0 | I162: 0 | L162: 0 | M162: 0 | N162: 0 | O162: 0 | R162: 0 | U162: 0 | V162: 0 | W162: 0 | X162: 0
E163: 613900 | F163: Ugovorene i druge posebne usluge | G163: 8800 | H163: 0 | I163: 8800 | L163: 0 | M163: 3000 | N163: 0 | O163: 3000 | R163: 0 | U163: 0 | V163: 3000 | W163: 0 | X163: 3000
E164: 613900 | F164: Ugovorene i druge posebne usluge - volonteri | G164: 3550 | H164: 0 | I164: 3550 | L164: 0 | M164: 825 | N164: 0 | O164: 825 | R164: 0 | U164: 0 | V164: 825 | W164: 0 | X164: 825
E165: 821000 | F165: Izdaci za nabavku stalnih sredstava | G165: =SUM(G166:G167) -> 4450 | H165: =SUM(H166:H167) -> 0 | I165: =SUM(I166:I167) -> 4450 | J165: =SUM(J166:J167) -> 0 | K165: =SUM(K166:K167) -> 0 | L165: =SUM(L166:L167) -> 0 | M165: =SUM(M166:M167) -> 0 | N165: =SUM(N166:N167) -> 0 | O165: =SUM(O166:O167) -> 0 | P165: =SUM(P166:P167) -> 0 | Q165: =SUM(Q166:Q167) -> 0 | R165: =SUM(R166:R167) -> 0 | S165: =SUM(S166:S167) -> 0 | T165: =SUM(T166:T167) -> 0 | U165: =SUM(U166:U167) -> 0 | V165: =SUM(V166:V167) -> 0 | W165: =SUM(W166:W167) -> 0 | X165: =SUM(X166:X167) -> 0
E166: 821200 | F166: Nabavka građevina | G166: 0 | H166: 0 | I166: =SUM(G166:H166) -> 0 | L166: =SUM(J166:K166) -> 0 | M166: 0 | N166: 0 | O166: =SUM(M166:N166) -> 0 | R166: =SUM(P166:Q166) -> 0 | U166: =SUM(S166:T166) -> 0 | V166: =S166+P166+M166+J166 -> 0 | W166: =T166+Q166+N166+K166 -> 0 | X166: =SUM(V166:W166) -> 0
E167: 821300 | F167: Nabavka opreme | G167: 4450 | H167: 0 | I167: =SUM(G167:H167) -> 4450 | L167: =SUM(J167:K167) -> 0 | M167: 0 | N167: 0 | O167: =SUM(M167:N167) -> 0 | R167: =SUM(P167:Q167) -> 0 | U167: =SUM(S167:T167) -> 0 | V167: 0 | W167: 0 | X167: =SUM(V167:W167) -> 0
F168: Ukupno za korisnika Služba za odnose s javnošću | G168: =G148+G152+G154+G165 -> 103270 | H168: =H148+H152+H154+H165 -> 0 | I168: 103270 | J168: 0 | K168: 0 | L168: 0 | M168: 25450 | N168: 0 | O168: 25450 | P168: 0 | Q168: 0 | R168: 0 | S168: 0 | T168: 0 | U168: 0 | V168: 25450 | W168: 0 | X168: 25450
A170: 11 | B170: 01 | C170: 0005 | F170: URED ZA GOSPODARSKI RAZVOJ ŽP
E171: 611000 | F171: Plaće i naknade troškova zaposlenih | G171: =SUM(G172:G174) -> 76860 | H171: =SUM(H172:H174) -> 0 | I171: =SUM(I172:I174) -> 76860 | J171: =SUM(J172:J174) -> 0 | K171: =SUM(K172:K174) -> 0 | L171: =SUM(L172:L174) -> 0 | M171: =SUM(M172:M174) -> 0 | N171: =SUM(N172:N174) -> 0 | O171: =SUM(O172:O174) -> 0 | P171: =SUM(P172:P174) -> 0 | Q171: =SUM(Q172:Q174) -> 0 | R171: =SUM(R172:R174) -> 0 | S171: =SUM(S172:S174) -> 0 | T171: =SUM(T172:T174) -> 0 | U171: =SUM(U172:U174) -> 0 | V171: =SUM(V172:V174) -> 0 | W171: =SUM(W172:W174) -> 0 | X171: =SUM(X172:X174) -> 0
E172: 611100 | F172: Bruto plaće i naknade | G172: 52300 | H172: 0 | I172: =SUM(G172:H172) -> 52300 | L172: =SUM(J172:K172) -> 0 | O172: =SUM(M172:N172) -> 0 | R172: =SUM(P172:Q172) -> 0 | U172: =SUM(S172:T172) -> 0 | V172: =S172+P172+M172+J172 -> 0 | W172: =T172+Q172+N172+K172 -> 0 | X172: =SUM(V172:W172) -> 0
E173: 611200 | F173: Naknade troškova zaposlenih | G173: 15760 | H173: 0 | I173: =SUM(G173:H173) -> 15760 | L173: =SUM(J173:K173) -> 0 | O173: =SUM(M173:N173) -> 0 | R173: =SUM(P173:Q173) -> 0 | U173: =SUM(S173:T173) -> 0 | V173: 0 | W173: 0 | X173: =SUM(V173:W173) -> 0
E174: 611200 | F174: Naknade troškova zaposlenih - volonteri | G174: 8800 | H174: 0 | I174: 8800 | L174: 0 | O174: 0 | R174: 0 | U174: 0 | V174: 0 | W174: 0 | X174: 0
E175: 612000 | F175: Doprinosi poslodavca | G175: =G176 -> 5900 | H175: =H176 -> 0 | I175: =I176 -> 5900 | J175: =J176 -> 0 | K175: =K176 -> 0 | L175: =L176 -> 0 | M175: =M176 -> 0 | N175: =N176 -> 0 | O175: =O176 -> 0 | P175: =P176 -> 0 | Q175: =Q176 -> 0 | R175: =R176 -> 0 | S175: =S176 -> 0 | T175: =T176 -> 0 | U175: =U176 -> 0 | V175: =V176 -> 0 | W175: =W176 -> 0 | X175: =X176 -> 0
E176: 612100 | F176: Doprinosi poslodavca | G176: 5900 | H176: 0 | I176: =SUM(G176:H176) -> 5900 | L176: =SUM(J176:K176) -> 0 | O176: =SUM(M176:N176) -> 0 | R176: =SUM(P176:Q176) -> 0 | U176: =SUM(S176:T176) -> 0 | V176: =S176+P176+M176+J176 -> 0 | W176: =T176+Q176+N176+K176 -> 0 | X176: =SUM(V176:W176) -> 0
E177: 613000 | F177: Izdaci za materijal, sitan inventar i usluge | G177: =SUM(G178:G187) -> 13900 | H177: =SUM(H178:H187) -> 0 | I177: =SUM(I178:I187) -> 13900 | J177: =SUM(J178:J187) -> 0 | K177: =SUM(K178:K187) -> 0 | L177: =SUM(L178:L187) -> 0 | M177: =SUM(M178:M187) -> 0 | N177: =SUM(N178:N187) -> 0 | O177: =SUM(O178:O187) -> 0 | P177: =SUM(P178:P187) -> 0 | Q177: =SUM(Q178:Q187) -> 0 | R177: =SUM(R178:R187) -> 0 | S177: =SUM(S178:S187) -> 0 | T177: =SUM(T178:T187) -> 0 | U177: =SUM(U178:U187) -> 0 | V177: =SUM(V178:V187) -> 0 | W177: =SUM(W178:W187) -> 0 | X177: =SUM(X178:X187) -> 0
E178: 613100 | F178: Putni troškovi | G178: 2800 | H178: 0 | I178: =SUM(G178:H178) -> 2800 | L178: =SUM(J178:K178) -> 0 | O178: =SUM(M178:N178) -> 0 | R178: =SUM(P178:Q178) -> 0 | U178: =SUM(S178:T178) -> 0 | V178: =S178+P178+M178+J178 -> 0 | W178: =T178+Q178+N178+K178 -> 0 | X178: =SUM(V178:W178) -> 0
E179: 613200 | F179: Izdaci za energiju | G179: 0 | H179: 0 | I179: 0 | L179: 0 | O179: 0 | R179: 0 | U179: 0 | V179: 0 | W179: 0 | X179: 0
E180: 613300 | F180: Izdaci za komunikaciju i komunalne usluge | G180: 600 | H180: 0 | I180: 600 | L180: 0 | O180: 0 | R180: 0 | U180: 0 | V180: 0 | W180: 0 | X180: 0
E181: 613400 | F181: Nabava materijala i sitnog inventara | G181: 600 | H181: 0 | I181: 600 | L181: 0 | O181: 0 | R181: 0 | U181: 0 | V181: 0 | W181: 0 | X181: 0
E182: 613500 | F182: Izdaci za usluge prijevoza i goriva | G182: 0 | H182: 0 | I182: 0 | L182: 0 | O182: 0 | R182: 0 | U182: 0 | V182: 0 | W182: 0 | X182: 0
E183: 613600 | F183: Unajmljivanje imovine, opreme i nemat.imovine | G183: 0 | H183: 0 | I183: 0 | L183: 0 | O183: 0 | R183: 0 | U183: 0 | V183: 0 | W183: 0 | X183: 0
E184: 613700 | F184: Izdaci za tekuće održavanje | G184: 300 | H184: 0 | I184: 300 | L184: 0 | O184: 0 | R184: 0 | U184: 0 | V184: 0 | W184: 0 | X184: 0
E185: 613800 | F185: Izdaci osiguranja, bank.usluga i usluga PP | G185: 0 | H185: 0 | I185: 0 | L185: 0 | O185: 0 | R185: 0 | U185: 0 | V185: 0 | W185: 0 | X185: 0
E186: 613900 | F186: Ugovorene i druge posebne usluge | G186: 1500 | H186: 0 | I186: 1500 | L186: 0 | O186: 0 | R186: 0 | U186: 0 | V186: 0 | W186: 0 | X186: 0
E187: 613900 | F187: Ugovorene i druge posebne usluge - volonteri | G187: 8100 | H187: 0 | I187: 8100 | L187: 0 | O187: 0 | R187: 0 | U187: 0 | V187: 0 | W187: 0 | X187: 0
E188: 821000 | F188: Izdaci za nabavku stalnih sredstava | G188: =SUM(G189:G190) -> 4500 | H188: =SUM(H189:H190) -> 0 | I188: =SUM(I189:I190) -> 4500 | J188: =SUM(J189:J190) -> 0 | K188: =SUM(K189:K190) -> 0 | L188: =SUM(L189:L190) -> 0 | M188: =SUM(M189:M190) -> 0 | N188: =SUM(N189:N190) -> 0 | O188: =SUM(O189:O190) -> 0 | P188: =SUM(P189:P190) -> 0 | Q188: =SUM(Q189:Q190) -> 0 | R188: =SUM(R189:R190) -> 0 | S188: =SUM(S189:S190) -> 0 | T188: =SUM(T189:T190) -> 0 | U188: =SUM(U189:U190) -> 0 | V188: =SUM(V189:V190) -> 0 | W188: =SUM(W189:W190) -> 0 | X188: =SUM(X189:X190) -> 0
E189: 821200 | F189: Nabavka građevina | G189: 0 | H189: 0 | I189: =SUM(G189:H189) -> 0 | L189: =SUM(J189:K189) -> 0 | O189: =SUM(M189:N189) -> 0 | R189: =SUM(P189:Q189) -> 0 | U189: =SUM(S189:T189) -> 0 | V189: =S189+P189+M189+J189 -> 0 | W189: =T189+Q189+N189+K189 -> 0 | X189: =SUM(V189:W189) -> 0
E190: 821300 | F190: Nabavka opreme | G190: 4500 | H190: 0 | I190: =SUM(G190:H190) -> 4500 | L190: =SUM(J190:K190) -> 0 | O190: =SUM(M190:N190) -> 0 | R190: =SUM(P190:Q190) -> 0 | U190: =SUM(S190:T190) -> 0 | V190: 0 | W190: 0 | X190: =SUM(V190:W190) -> 0
F191: Ukupno za korisnika Ured za gospodarski razvoj ŽP | G191: =G171+G175+G177+G188 -> 101160 | H191: =H171+H175+H177+H188 -> 0 | I191: 101160 | J191: 0 | K191: 0 | L191: 0 | M191: 0 | N191: 0 | O191: 0 | P191: 0 | Q191: 0 | R191: 0 | S191: 0 | T191: 0 | U191: 0 | V191: 0 | W191: 0 | X191: 0 | Y191: =IF(OR(V191>G191, W191>H191),"Ukupni operativni plan je veći od Proračuna!","") -> 
A193: 12 | B193: 01 | C193: 0001 | F193: ZAJEDNIČKA SLUŽBA VLADE
E194: 611000 | F194: Plaće i naknade troškova zaposlenih | G194: =SUM(G195:G197) -> 241160 | H194: =SUM(H195:H197) -> 0 | I194: =SUM(I195:I197) -> 241160 | J194: =SUM(J195:J197) -> 0 | K194: =SUM(K195:K197) -> 0 | L194: =SUM(L195:L197) -> 0 | M194: =SUM(M195:M197) -> 0 | N194: =SUM(N195:N197) -> 0 | O194: =SUM(O195:O197) -> 0 | P194: =SUM(P195:P197) -> 0 | Q194: =SUM(Q195:Q197) -> 0 | R194: =SUM(R195:R197) -> 0 | S194: =SUM(S195:S197) -> 0 | T194: =SUM(T195:T197) -> 0 | U194: =SUM(U195:U197) -> 0 | V194: =SUM(V195:V197) -> 0 | W194: =SUM(W195:W197) -> 0 | X194: =SUM(X195:X197) -> 0
E195: 611100 | F195: Bruto plaće i naknade | G195: 162100 | H195: 0 | I195: =SUM(G195:H195) -> 162100 | L195: =SUM(J195:K195) -> 0 | O195: =SUM(M195:N195) -> 0 | R195: =SUM(P195:Q195) -> 0 | U195: =SUM(S195:T195) -> 0 | V195: =S195+P195+M195+J195 -> 0 | W195: =T195+Q195+N195+K195 -> 0 | X195: =SUM(V195:W195) -> 0
E196: 611200 | F196: Naknade troškova zaposlenih | G196: 58260 | H196: 0 | I196: =SUM(G196:H196) -> 58260 | L196: =SUM(J196:K196) -> 0 | O196: =SUM(M196:N196) -> 0 | R196: =SUM(P196:Q196) -> 0 | U196: =SUM(S196:T196) -> 0 | V196: 0 | W196: 0 | X196: =SUM(V196:W196) -> 0
E197: 611200 | F197: Naknade troškova zaposlenih - volonteri | G197: 20800 | H197: 0 | I197: 20800 | L197: 0 | O197: 0 | R197: 0 | U197: 0 | V197: 0 | W197: 0 | X197: 0
E198: 612000 | F198: Doprinosi poslodavca | G198: =G199 -> 17600 | H198: =H199 -> 0 | I198: =I199 -> 17600 | J198: =J199 -> 0 | K198: =K199 -> 0 | L198: =L199 -> 0 | M198: =M199 -> 0 | N198: =N199 -> 0 | O198: =O199 -> 0 | P198: =P199 -> 0 | Q198: =Q199 -> 0 | R198: =R199 -> 0 | S198: =S199 -> 0 | T198: =T199 -> 0 | U198: =U199 -> 0 | V198: =V199 -> 0 | W198: =W199 -> 0 | X198: =X199 -> 0
E199: 612100 | F199: Doprinosi poslodavca | G199: 17600 | H199: 0 | I199: =SUM(G199:H199) -> 17600 | L199: =SUM(J199:K199) -> 0 | O199: =SUM(M199:N199) -> 0 | R199: =SUM(P199:Q199) -> 0 | U199: =SUM(S199:T199) -> 0 | V199: =S199+P199+M199+J199 -> 0 | W199: =T199+Q199+N199+K199 -> 0 | X199: =SUM(V199:W199) -> 0
E200: 613000 | F200: Izdaci za materijal, sitan inventar i usluge | G200: =SUM(G201:G210) -> 400400 | H200: =SUM(H201:H210) -> 0 | I200: =SUM(I201:I210) -> 400400 | J200: =SUM(J201:J210) -> 0 | K200: =SUM(K201:K210) -> 0 | L200: =SUM(L201:L210) -> 0 | M200: =SUM(M201:M210) -> 0 | N200: =SUM(N201:N210) -> 0 | O200: =SUM(O201:O210) -> 0 | P200: =SUM(P201:P210) -> 0 | Q200: =SUM(Q201:Q210) -> 0 | R200: =SUM(R201:R210) -> 0 | S200: =SUM(S201:S210) -> 0 | T200: =SUM(T201:T210) -> 0 | U200: =SUM(U201:U210) -> 0 | V200: =SUM(V201:V210) -> 0 | W200: =SUM(W201:W210) -> 0 | X200: =SUM(X201:X210) -> 0
E201: 613100 | F201: Putni troškovi | G201: 6000 | H201: 0 | I201: =SUM(G201:H201) -> 6000 | L201: =SUM(J201:K201) -> 0 | O201: =SUM(M201:N201) -> 0 | R201: =SUM(P201:Q201) -> 0 | U201: =SUM(S201:T201) -> 0 | V201: =S201+P201+M201+J201 -> 0 | W201: =T201+Q201+N201+K201 -> 0 | X201: =SUM(V201:W201) -> 0
E202: 613200 | F202: Izdaci za energiju | G202: 104200 | H202: 0 | I202: 104200 | L202: 0 | O202: 0 | R202: 0 | U202: 0 | V202: 0 | W202: 0 | X202: 0
E203: 613300 | F203: Izdaci za komunikaciju i komunalne usluge | G203: 44000 | H203: 0 | I203: 44000 | L203: 0 | O203: 0 | R203: 0 | U203: 0 | V203: 0 | W203: 0 | X203: 0
E204: 613400 | F204: Nabava materijala i sitnog inventara | G204: 79000 | H204: 0 | I204: 79000 | L204: 0 | O204: 0 | R204: 0 | U204: 0 | V204: 0 | W204: 0 | X204: 0
E205: 613500 | F205: Izdaci za usluge prijevoza i goriva | G205: 41400 | H205: 0 | I205: 41400 | L205: 0 | O205: 0 | R205: 0 | U205: 0 | V205: 0 | W205: 0 | X205: 0
E206: 613600 | F206: Unajmljivanje imovine, opreme i nemat.imovine | G206: 0 | H206: 0 | I206: 0 | L206: 0 | O206: 0 | R206: 0 | U206: 0 | V206: 0 | W206: 0 | X206: 0
E207: 613700 | F207: Izdaci za tekuće održavanje | G207: 40000 | H207: 0 | I207: 40000 | L207: 0 | O207: 0 | R207: 0 | U207: 0 | V207: 0 | W207: 0 | X207: 0
E208: 613800 | F208: Izdaci osiguranja, bank.usluga i usluga PP | G208: 7600 | H208: 0 | I208: 7600 | L208: 0 | O208: 0 | R208: 0 | U208: 0 | V208: 0 | W208: 0 | X208: 0
... 691 more rows

Sheet Kvartalni
A1: ="PRIJEDLOG TROMJESEČNOG OPERATIVNOG PLANA RASHODA I IZDATAKA ZA "&E5&" 2016. GODINE" -> PRIJEDLOG TROMJESEČNOG OPERATIVNOG PLANA RASHODA I IZDATAKA ZA IV. kvartal 2016. GODINE
G2: =E4 -> 11010001
A3: Proračunski korisnik: | E3: =INDEX(Lista!A:B,MATCH($E$4,Lista!A:A,0),2) -> VLADA ŽUPANIJE POSAVSKE
A4: Organizacijski kod: | E4: 11010001
A5: Kvartal: | E5: IV. kvartal
A7: Razdjel | B7: Glava | C7: Potroš. jedinica | E7: Ekonom. kod | F7: Opis | H7: Proračun za 2016. godinu | K7: =INDEX(Lista!J:K,MATCH($E$5,Lista!J:J,0),2) -> Listopad 2016. god. | N7: =INDEX(Lista!J:K,MATCH($E$5,Lista!J:J,0)+1,2) -> Studeni 2016. god. | Q7: =INDEX(Lista!J:K,MATCH($E$5,Lista!J:J,0)+2,2) -> Prosinac 2016. god. | T7: ="Ukupno za "&E5&" 2016. god." -> Ukupno za IV. kvartal 2016. god.
G8: Rashodi i | H8: Rashodi iz | I8: Ukupni | J8: Rashodi i | K8: Rashodi iz | L8: Ukupni | M8: Rashodi i | N8: Rashodi iz | O8: Ukupni | P8: Rashodi i | Q8: Rashodi iz | R8: Ukupni | S8: Rashodi i | T8: Rashodi iz | U8: Ukupni
G9: izdaci iz | H9: namj.sr., | I9: rashodi i | J9: izdaci iz | K9: namj.sr., | L9: rashodi i | M9: izdaci iz | N9: namj.sr., | O9: rashodi i | P9: izdaci iz | Q9: namj.sr., | R9: rashodi i | S9: izdaci iz | T9: namj.sr., | U9: rashodi i
G10: proračuna | H10: tek. trans. i don. | I10: izdaci | J10: proračuna | K10: tek. trans. i don. | L10: izdaci | M10: proračuna | N10: tek. trans. i don. | O10: izdaci | P10: proračuna | Q10: tek. trans. i don. | R10: izdaci | S10: proračuna | T10: tek. trans. i don. | U10: izdaci
A11: 1 | B11: 2 | C11: 3 | E11: 4 | F11: 5 | G11: 6 | H11: 7 | I11: 8 | J11: 9 | K11: 10 | L11: 11 | M11: 12 | N11: 13 | O11: 14 | P11: 15 | Q11: 16 | R11: 17 | S11: 18 | T11: 19 | U11: 20
A12: 10 | B12: 01 | C12: 0001 | F12: SKUPŠTINA ŽUPANIJE POSAVSKE
E13: 611000 | F13: Plaće i naknade troškova zaposlenih | G13: =SUM(G14:G16) -> 415800 | H13: =SUM(H14:H16) -> 0 | I13: 415800 | J13: 0 | K13: 0 | L13: 0 | M13: 0 | N13: 0 | O13: 0 | P13: 0 | Q13: 0 | R13: 0 | S13: 0 | T13: 0 | U13: 0
E14: 611100 | F14: Bruto plaće i naknade | G14: =Godišnji!G13 -> 318500 | H14: 0 | I14: =SUM(G14:H14) -> 318500 | L14: =SUM(J14:K14) -> 0 | O14: =SUM(M14:N14) -> 0 | R14: =SUM(P14:Q14) -> 0 | S14: =P14+M14+J14 -> 0 | T14: =Q14+N14+K14 -> 0 | U14: =SUM(S14:T14) -> 0
E15: 611200 | F15: Naknade troškova zaposlenih | G15: =Godišnji!G14 -> 75700 | H15: 0 | I15: =SUM(G15:H15) -> 75700 | L15: =SUM(J15:K15) -> 0 | O15: =SUM(M15:N15) -> 0 | R15: =SUM(P15:Q15) -> 0 | S15: =P15+M15+J15 -> 0 | T15: =Q15+N15+K15 -> 0 | U15: =SUM(S15:T15) -> 0
E16: 611200 | F16: Naknade troškova zaposlenih - volonteri | G16: =Godišnji!G15 -> 21600 | H16: 0 | I16: 21600 | L16: 0 | O16: 0 | R16: 0 | S16: 0 | T16: 0 | U16: 0
E17: 612000 | F17: Doprinosi poslodavca | G17: =G18 -> 34100 | H17: =H18 -> 0 | I17: 34100 | J17: 0 | K17: 0 | L17: 0 | M17: 0 | N17: 0 | O17: 0 | P17: 0 | Q17: 0 | R17: 0 | S17: 0 | T17: 0 | U17: 0
E18: 612100 | F18: Doprinosi poslodavca | G18: =Godišnji!G17 -> 34100 | H18: 0 | I18: =SUM(G18:H18) -> 34100 | L18: =SUM(J18:K18) -> 0 | O18: =SUM(M18:N18) -> 0 | R18: =SUM(P18:Q18) -> 0 | S18: =P18+M18+J18 -> 0 | T18: =Q18+N18+K18 -> 0 | U18: =SUM(S18:T18) -> 0
E19: 613000 | F19: Izdaci za materijal, sitan inventar i usluge | G19: =SUM(G20:G29) -> 288840 | H19: =SUM(H20:H29) -> 0 | I19: 288840 | J19: 0 | K19: 0 | L19: 0 | M19: 0 | N19: 0 | O19: 0 | P19: 0 | Q19: 0 | R19: 0 | S19: 0 | T19: 0 | U19: 0
E20: 613100 | F20: Putni troškovi | G20: =Godišnji!G19 -> 6000 | H20: 0 | I20: =SUM(G20:H20) -> 6000 | L20: =SUM(J20:K20) -> 0 | O20: =SUM(M20:N20) -> 0 | R20: =SUM(P20:Q20) -> 0 | S20: =P20+M20+J20 -> 0 | T20: =Q20+N20+K20 -> 0 | U20: =SUM(S20:T20) -> 0
E21: 613200 | F21: Izdaci za energiju | G21: =Godišnji!G20 -> 13600 | H21: 0 | I21: 13600 | L21: 0 | O21: 0 | R21: 0 | S21: 0 | T21: 0 | U21: 0
E22: 613300 | F22: Izdaci za komunikaciju i komunalne usluge | G22: =Godišnji!G21 -> 7300 | H22: 0 | I22: 7300 | L22: 0 | O22: 0 | R22: 0 | S22: 0 | T22: 0 | U22: 0
E23: 613400 | F23: Nabava materijala i sitnog inventara | G23: =Godišnji!G22 -> 5500 | H23: 0 | I23: 5500 | L23: 0 | O23: 0 | R23: 0 | S23: 0 | T23: 0 | U23: 0
E24: 613500 | F24: Izdaci za usluge prijevoza i goriva | G24: =Godišnji!G23 -> 10000 | H24: 0 | I24: 10000 | L24: 0 | O24: 0 | R24: 0 | S24: 0 | T24: 0 | U24: 0
E25: 613600 | F25: Unajmljivanje imovine, opreme i nemat.imovine | G25: =Godišnji!G24 -> 0 | H25: 0 | I25: 0 | L25: 0 | O25: 0 | R25: 0 | S25: 0 | T25: 0 | U25: 0
E26: 613700 | F26: Izdaci za tekuće održavanje | G26: =Godišnji!G25 -> 8000 | H26: 0 | I26: 8000 | L26: 0 | O26: 0 | R26: 0 | S26: 0 | T26: 0 | U26: 0
E27: 613800 | F27: Izdaci osiguranja, bank.usluga i usluga PP | G27: =Godišnji!G26 -> 340 | H27: 0 | I27: 340 | L27: 0 | O27: 0 | R27: 0 | S27: 0 | T27: 0 | U27: 0
E28: 613900 | F28: Ugovorene i druge posebne usluge | G28: =Godišnji!G27 -> 215400 | H28: 0 | I28: 215400 | L28: 0 | O28: 0 | R28: 0 | S28: 0 | T28: 0 | U28: 0
E29: 613900 | F29: Ugovorene i druge posebne usluge - volonteri | G29: =Godišnji!G28 -> 22700 | H29: 0 | I29: 22700 | L29: 0 | O29: 0 | R29: 0 | S29: 0 | T29: 0 | U29: 0
E30: 821000 | F30: Izdaci za nabavku stalnih sredstava | G30: =SUM(G31:G32) -> 4000 | H30: =SUM(H31:H32) -> 0 | I30: 4000 | J30: 0 | K30: 0 | L30: 0 | M30: 0 | N30: 0 | O30: 0 | P30: 0 | Q30: 0 | R30: 0 | S30: 0 | T30: 0 | U30: 0
E31: 821200 | F31: Nabavka građevina | G31: =Godišnji!G30 -> 2000 | H31: 0 | I31: =SUM(G31:H31) -> 2000 | L31: =SUM(J31:K31) -> 0 | O31: =SUM(M31:N31) -> 0 | R31: =SUM(P31:Q31) -> 0 | S31: =P31+M31+J31 -> 0 | T31: =Q31+N31+K31 -> 0 | U31: =SUM(S31:T31) -> 0
E32: 821300 | F32: Nabavka opreme | G32: =Godišnji!G31 -> 2000 | H32: 0 | I32: =SUM(G32:H32) -> 2000 | L32: =SUM(J32:K32) -> 0 | O32: =SUM(M32:N32) -> 0 | R32: =SUM(P32:Q32) -> 0 | S32: 0 | T32: 0 | U32: =SUM(S32:T32) -> 0
F33: Ukupno za korisnika Skupština Županije Posavske | G33: =G13+G17+G19+G30 -> 742740 | H33: =H13+H17+H19+H30 -> 0 | I33: 742740 | J33: 0 | K33: 0 | L33: 0 | M33: 0 | N33: 0 | O33: 0 | P33: 0 | Q33: 0 | R33: 0 | S33: 0 | T33: 0 | U33: 0
A35: 10 | B35: 01 | C35: 0002 | F35: STRUČNA SLUŽBA SKUPŠTINE
E36: 611000 | F36: Plaće i naknade troškova zaposlenih | G36: =SUM(G37:G39) -> 40820 | H36: =SUM(H37:H39) -> 0 | I36: 40820 | J36: 0 | K36: 0 | L36: 0 | M36: 0 | N36: 0 | O36: 0 | P36: 0 | Q36: 0 | R36: 0 | S36: 0 | T36: 0 | U36: 0
E37: 611100 | F37: Bruto plaće i naknade | G37: =Godišnji!G36 -> 30500 | H37: 0 | I37: =SUM(G37:H37) -> 30500 | L37: =SUM(J37:K37) -> 0 | O37: =SUM(M37:N37) -> 0 | R37: =SUM(P37:Q37) -> 0 | S37: =P37+M37+J37 -> 0 | T37: =Q37+N37+K37 -> 0 | U37: =SUM(S37:T37) -> 0
E38: 611200 | F38: Naknade troškova zaposlenih | G38: =Godišnji!G37 -> 10320 | H38: 0 | I38: =SUM(G38:H38) -> 10320 | L38: =SUM(J38:K38) -> 0 | O38: =SUM(M38:N38) -> 0 | R38: =SUM(P38:Q38) -> 0 | S38: =P38+M38+J38 -> 0 | T38: =Q38+N38+K38 -> 0 | U38: =SUM(S38:T38) -> 0
E39: 611200 | F39: Naknade troškova zaposlenih - volonteri | G39: =Godišnji!G38 -> 0 | H39: 0 | I39: 0 | L39: 0 | O39: 0 | R39: 0 | S39: 0 | T39: 0 | U39: 0
E40: 612000 | F40: Doprinosi poslodavca | G40: =Godišnji!G39 -> 3400 | H40: =H41 -> 0 | I40: 3400 | J40: 0 | K40: 0 | L40: 0 | M40: 0 | N40: 0 | O40: 0 | P40: 0 | Q40: 0 | R40: 0 | S40: 0 | T40: 0 | U40: 0
E41: 612100 | F41: Doprinosi poslodavca | G41: =Godišnji!G40 -> 3400 | H41: 0 | I41: =SUM(G41:H41) -> 3400 | L41: =SUM(J41:K41) -> 0 | O41: =SUM(M41:N41) -> 0 | R41: =SUM(P41:Q41) -> 0 | S41: =P41+M41+J41 -> 0 | T41: =Q41+N41+K41 -> 0 | U41: =SUM(S41:T41) -> 0
E42: 613000 | F42: Izdaci za materijal, sitan inventar i usluge | G42: =Godišnji!G41 -> 1050 | H42: =SUM(H43:H52) -> 0 | I42: 1050 | J42: 0 | K42: 0 | L42: 0 | M42: 0 | N42: 0 | O42: 0 | P42: 0 | Q42: 0 | R42: 0 | S42: 0 | T42: 0 | U42: 0
E43: 613100 | F43: Putni troškovi | G43: =Godišnji!G42 -> 500 | H43: 0 | I43: =SUM(G43:H43) -> 500 | L43: =SUM(J43:K43) -> 0 | O43: =SUM(M43:N43) -> 0 | R43: =SUM(P43:Q43) -> 0 | S43: =P43+M43+J43 -> 0 | T43: =Q43+N43+K43 -> 0 | U43: =SUM(S43:T43) -> 0
E44: 613200 | F44: Izdaci za energiju | G44: =Godišnji!G43 -> 0 | H44: 0 | I44: 0 | L44: 0 | O44: 0 | R44: 0 | S44: 0 | T44: 0 | U44: 0
E45: 613300 | F45: Izdaci za komunikaciju i komunalne usluge | G45: =Godišnji!G44 -> 0 | H45: 0 | I45: 0 | L45: 0 | O45: 0 | R45: 0 | S45: 0 | T45: 0 | U45: 0
E46: 613400 | F46: Nabava materijala i sitnog inventara | G46: =Godišnji!G45 -> 0 | H46: 0 | I46: 0 | L46: 0 | O46: 0 | R46: 0 | S46: 0 | T46: 0 | U46: 0
E47: 613500 | F47: Izdaci za usluge prijevoza i goriva | G47: =Godišnji!G46 -> 0 | H47: 0 | I47: 0 | L47: 0 | O47: 0 | R47: 0 | S47: 0 | T47: 0 | U47: 0
E48: 613600 | F48: Unajmljivanje imovine, opreme i nemat.imovine | G48: =Godišnji!G47 -> 0 | H48: 0 | I48: 0 | L48: 0 | O48: 0 | R48: 0 | S48: 0 | T48: 0 | U48: 0
E49: 613700 | F49: Izdaci za tekuće održavanje | G49: =Godišnji!G48 -> 0 | H49: 0 | I49: 0 | L49: 0 | O49: 0 | R49: 0 | S49: 0 | T49: 0 | U49: 0
E50: 613800 | F50: Izdaci osiguranja, bank.usluga i usluga PP | G50: =Godišnji!G49 -> 0 | H50: 0 | I50: 0 | L50: 0 | O50: 0 | R50: 0 | S50: 0 | T50: 0 | U50: 0
E51: 613900 | F51: Ugovorene i druge posebne usluge | G51: =Godišnji!G50 -> 550 | H51: 0 | I51: 550 | L51: 0 | O51: 0 | R51: 0 | S51: 0 | T51: 0 | U51: 0
E52: 613900 | F52: Ugovorene i druge posebne usluge - volonteri | G52: =Godišnji!G51 -> 0 | H52: 0 | I52: 0 | L52: 0 | O52: 0 | R52: 0 | S52: 0 | T52: 0 | U52: 0
E53: 821000 | F53: Izdaci za nabavku stalnih sredstava | G53: =Godišnji!G52 -> 0 | H53: =SUM(H54:H55) -> 0 | I53: 0 | J53: 0 | K53: 0 | L53: 0 | M53: 0 | N53: 0 | O53: 0 | P53: 0 | Q53: 0 | R53: 0 | S53: 0 | T53: 0 | U53: 0
E54: 821200 | F54: Nabavka građevina | G54: =Godišnji!G53 -> 0 | H54: 0 | I54: =SUM(G54:H54) -> 0 | L54: =SUM(J54:K54) -> 0 | O54: =SUM(M54:N54) -> 0 | R54: =SUM(P54:Q54) -> 0 | S54: =P54+M54+J54 -> 0 | T54: =Q54+N54+K54 -> 0 | U54: =SUM(S54:T54) -> 0
E55: 821300 | F55: Nabavka opreme | G55: =Godišnji!G54 -> 0 | H55: 0 | I55: =SUM(G55:H55) -> 0 | L55: =SUM(J55:K55) -> 0 | O55: =SUM(M55:N55) -> 0 | R55: =SUM(P55:Q55) -> 0 | S55: 0 | T55: 0 | U55: =SUM(S55:T55) -> 0
F56: Ukupno za korisnika Stručna služba Skupštine | G56: =G36+G40+G42+G53 -> 45270 | H56: =H36+H40+H42+H53 -> 0 | I56: 45270 | J56: 0 | K56: 0 | L56: 0 | M56: 0 | N56: 0 | O56: 0 | P56: 0 | Q56: 0 | R56: 0 | S56: 0 | T56: 0 | U56: 0
A58: 11 | B58: 01 | C58: 0001 | F58: VLADA ŽUPANIJE POSAVSKE
E59: 600000 | F59: Rashodi - tekuća pričuva | G59: =SUM(G60:G62) -> 945000 | H59: =SUM(H60:H62) -> 0 | I59: =SUM(I60:I62) -> 945000 | J59: 0 | K59: 0 | L59: 0 | M59: 0 | N59: 0 | O59: 0 | P59: 0 | Q59: 0 | R59: 0 | S59: 0 | T59: 0 | U59: 0
E60: 600000 | F60: Tekuća pričuva Vlade | G60: =Godišnji!G59 -> 900000 | H60: 0 | I60: =SUM(G60:H60) -> 900000 | L60: =SUM(J60:K60) -> 0 | O60: =SUM(M60:N60) -> 0 | R60: =SUM(P60:Q60) -> 0 | S60: =P60+M60+J60 -> 0 | T60: =Q60+N60+K60 -> 0 | U60: =SUM(S60:T60) -> 0
E61: 600000 | F61: Tekuća pričuva predsjednika Vlade | G61: =Godišnji!G60 -> 30000 | H61: 0 | I61: =SUM(G61:H61) -> 30000 | L61: =SUM(J61:K61) -> 0 | O61: =SUM(M61:N61) -> 0 | R61: =SUM(P61:Q61) -> 0 | S61: =P61+M61+J61 -> 0 | T61: =Q61+N61+K61 -> 0 | U61: =SUM(S61:T61) -> 0
E62: 600000 | F62: Tekuća pričuva zamjenika pred.Vlade | G62: =Godišnji!G61 -> 15000 | H62: 0 | I62: 15000 | L62: 0 | O62: 0 | R62: 0 | S62: 0 | T62: 0 | U62: 0
E63: 611000 | F63: Plaće i naknade troškova zaposlenih | G63: =SUM(G64:G66) -> 136800 | H63: =SUM(H64:H66) -> 0 | I63: =SUM(I64:I66) -> 136800 | J63: 0 | K63: 0 | L63: 0 | M63: 0 | N63: 0 | O63: 0 | P63: 0 | Q63: 0 | R63: 0 | S63: 0 | T63: 0 | U63: 0
E64: 611100 | F64: Bruto plaće i naknade | G64: =Godišnji!G63 -> 109100 | H64: 0 | I64: =SUM(G64:H64) -> 109100 | L64: =SUM(J64:K64) -> 0 | O64: =SUM(M64:N64) -> 0 | R64: =SUM(P64:Q64) -> 0 | S64: =P64+M64+J64 -> 0 | T64: =Q64+N64+K64 -> 0 | U64: =SUM(S64:T64) -> 0
E65: 611200 | F65: Naknade troškova zaposlenih | G65: =Godišnji!G64 -> 24300 | H65: 0 | I65: =SUM(G65:H65) -> 24300 | L65: =SUM(J65:K65) -> 0 | O65: =SUM(M65:N65) -> 0 | R65: =SUM(P65:Q65) -> 0 | S65: =P65+M65+J65 -> 0 | T65: =Q65+N65+K65 -> 0 | U65: =SUM(S65:T65) -> 0
E66: 611200 | F66: Naknade troškova zaposlenih - volonteri | G66: =Godišnji!G65 -> 3400 | H66: 0 | I66: 3400 | L66: 0 | O66: 0 | R66: 0 | S66: 0 | T66: 0 | U66: 0
E67: 612000 | F67: Doprinosi poslodavca | G67: =G68 -> 11900 | H67: =H68 -> 0 | I67: =I68 -> 11900 | J67: 0 | K67: 0 | L67: 0 | M67: 0 | N67: 0 | O67: 0 | P67: 0 | Q67: 0 | R67: 0 | S67: 0 | T67: 0 | U67: 0
E68: 612100 | F68: Doprinosi poslodavca | G68: =Godišnji!G67 -> 11900 | H68: 0 | I68: =SUM(G68:H68) -> 11900 | L68: =SUM(J68:K68) -> 0 | O68: =SUM(M68:N68) -> 0 | R68: =SUM(P68:Q68) -> 0 | S68: =P68+M68+J68 -> 0 | T68: =Q68+N68+K68 -> 0 | U68: =SUM(S68:T68) -> 0
E69: 613000 | F69: Izdaci za materijal, sitan inventar i usluge | G69: =SUM(G70:G80) -> 209500 | H69: =SUM(H70:H80) -> 0 | I69: =SUM(I70:I80) -> 209500 | J69: 0 | K69: 0 | L69: 0 | M69: 0 | N69: 0 | O69: 0 | P69: 0 | Q69: 0 | R69: 0 | S69: 0 | T69: 0 | U69: 0
E70: 613100 | F70: Putni troškovi | G70: =Godišnji!G69 -> 14000 | H70: 0 | I70: =SUM(G70:H70) -> 14000 | L70: =SUM(J70:K70) -> 0 | O70: =SUM(M70:N70) -> 0 | R70: =SUM(P70:Q70) -> 0 | S70: =P70+M70+J70 -> 0 | T70: =Q70+N70+K70 -> 0 | U70: =SUM(S70:T70) -> 0
E71: 613200 | F71: Izdaci za energiju | G71: =Godišnji!G70 -> 0 | H71: 0 | I71: 0 | L71: 0 | O71: 0 | R71: 0 | S71: 0 | T71: 0 | U71: 0
E72: 613300 | F72: Izdaci za komunikaciju i komunalne usluge | G72: 5500 | H72: 0 | I72: 5500 | L72: 0 | O72: 0 | R72: 0 | S72: 0 | T72: 0 | U72: 0
E73: 613400 | F73: Nabava materijala i sitnog inventara | G73: =Godišnji!G72 -> 1500 | H73: 0 | I73: 1500 | L73: 0 | O73: 0 | R73: 0 | S73: 0 | T73: 0 | U73: 0
E74: 613500 | F74: Izdaci za usluge prijevoza i goriva | G74: =Godišnji!G73 -> 1500 | H74: 0 | I74: 1500 | L74: 0 | O74: 0 | R74: 0 | S74: 0 | T74: 0 | U74: 0
E75: 613600 | F75: Unajmljivanje imovine, opreme i nemat.imovine | G75: =Godišnji!G74 -> 0 | H75: 0 | I75: 0 | L75: 0 | O75: 0 | R75: 0 | S75: 0 | T75: 0 | U75: 0
E76: 613700 | F76: Izdaci za tekuće održavanje | G76: =Godišnji!G75 -> 7000 | H76: 0 | I76: 7000 | L76: 0 | O76: 0 | R76: 0 | S76: 0 | T76: 0 | U76: 0
E77: 613800 | F77: Izdaci osiguranja, bank.usluga i usluga PP | G77: =Godišnji!G76 -> 2600 | H77: 0 | I77: 2600 | L77: 0 | O77: 0 | R77: 0 | S77: 0 | T77: 0 | U77: 0
E78: 613900 | F78: Ugovorene i druge posebne usluge | G78: =Godišnji!G77 -> 138100 | H78: 0 | I78: 138100 | L78: 0 | O78: 0 | R78: 0 | S78: 0 | T78: 0 | U78: 0
E79: 613900 | F79: Agencija za državnu službu | G79: =Godišnji!G78 -> 36000 | H79: 0 | I79: 36000 | L79: 0 | O79: 0 | R79: 0 | S79: 0 | T79: 0 | U79: 0
E80: 613900 | F80: Ugovorene i druge posebne usluge - volonteri | G80: =Godišnji!G79 -> 3300 | H80: 0 | I80: 3300 | L80: 0 | O80: 0 | R80: 0 | S80: 0 | T80: 0 | U80: 0
E81: 614000 | F81: Tekući grantovi i drugi tekući rashodi | G81: =SUM(G82:G91) -> 705290 | H81: =SUM(H82:H91) -> 25000 | I81: =SUM(I82:I91) -> 730290 | J81: =SUM(J82:J91) -> 0 | K81: 0 | L81: =SUM(L82:L91) -> 0 | M81: =SUM(M82:M91) -> 0 | N81: 0 | O81: =SUM(O82:O91) -> 0 | P81: =SUM(P82:P91) -> 0 | Q81: 0 | R81: =SUM(R82:R91) -> 0 | S81: =SUM(S82:S91) -> 0 | T81: 0 | U81: =SUM(U82:U91) -> 0
E82: 614100 | F82: Grant za sanaciju teta uzrokovanih poplavom | G82: =Godišnji!G81 -> 45290 | H82: 25000 | I82: =SUM(G82:H82) -> 70290 | L82: =SUM(J82:K82) -> 0 | O82: =SUM(M82:N82) -> 0 | R82: =SUM(P82:Q82) -> 0 | S82: =P82+M82+J82 -> 0 | T82: =Q82+N82+K82 -> 0 | U82: =SUM(S82:T82) -> 0
E83: 614100 | F83: Grant za Sveučilište u Mostaru | G83: =Godišnji!G82 -> 200000 | H83: 0 | I83: 200000 | L83: 0 | O83: 0 | R83: 0 | S83: 0 | T83: 0 | U83: 0
E84: 614200 | F84: Grant za sufinanc.nabavke udžbenika učenicima | G84: =Godišnji!G83 -> 100000 | H84: 0 | I84: 100000 | L84: 0 | O84: 0 | R84: 0 | S84: 0 | T84: 0 | U84: 0
E85: 614300 | F85: Grantovi nepro.organizacijama i udruženjima građana | G85: =Godišnji!G84 -> 105000 | H85: 0 | I85: 105000 | L85: 0 | O85: 0 | R85: 0 | S85: 0 | T85: 0 | U85: 0
E86: 614300 | F86: Grant za Crveni križ Županije Posavske | G86: =Godišnji!G85 -> 30000 | H86: 0 | I86: 30000 | L86: 0 | O86: 0 | R86: 0 | S86: 0 | T86: 0 | U86: 0
E87: 614300 | F87: Grant za Kuću nade Odžak | G87: =Godišnji!G86 -> 15000 | H87: 0 | I87: 15000 | L87: 0 | O87: 0 | R87: 0 | S87: 0 | T87: 0 | U87: 0
E88: 614300 | F88: Grant za udr.roditelja djece s pos.potrebama Orašje | G88: =Godišnji!G87 -> 15000 | H88: 0 | I88: 15000 | L88: 0 | O88: 0 | R88: 0 | S88: 0 | T88: 0 | U88: 0
E89: 614300 | F89: Grant za udr.roditelja djce s pos.potr.Angelus Domalj. | G89: =Godišnji!G88 -> 5000 | H89: 0 | I89: 5000 | L89: 0 | O89: 0 | R89: 0 | S89: 0 | T89: 0 | U89: 0
E90: 614300 | F90: Grant za Gospodarsku komoru ŽP | G90: =Godišnji!G89 -> 30000 | H90: 0 | I90: 30000 | L90: 0 | O90: 0 | R90: 0 | S90: 0 | T90: 0 | U90: 0
E91: 614300 | F91: Grantovi političkim strankama | G91: =Godišnji!G90 -> 160000 | H91: 0 | I91: 160000 | L91: 0 | O91: 0 | R91: 0 | S91: 0 | T91: 0 | U91: 0
E92: 615000 | F92: Kapitalni grantovi | G92: =G93 -> 500000 | H92: =H93 -> 0 | I92: =I93 -> 500000 | J92: =J93 -> 0 | K92: 0 | L92: =L93 -> 0 | M92: =M93 -> 0 | N92: 0 | O92: =O93 -> 0 | P92: =P93 -> 0 | Q92: 0 | R92: =R93 -> 0 | S92: =S93 -> 0 | T92: 0 | U92: =U93 -> 0
E93: 615100 | F93: Kapitalni grantovi | G93: =Godišnji!G92 -> 500000 | H93: 0 | I93: =SUM(G93:H93) -> 500000 | L93: =SUM(J93:K93) -> 0 | O93: =SUM(M93:N93) -> 0 | R93: =SUM(P93:Q93) -> 0 | S93: =P93+M93+J93 -> 0 | T93: =Q93+N93+K93 -> 0 | U93: =SUM(S93:T93) -> 0
E94: 821000 | F94: Izdaci za nabavku stalnih sredstava | G94: =SUM(G95:G97) -> 168000 | H94: =SUM(H95:H97) -> 186827 | I94: 354827 | J94: 0 | K94: 0 | L94: 0 | M94: 0 | N94: 0 | O94: 0 | P94: 0 | Q94: 0 | R94: 0 | S94: 0 | T94: 0 | U94: 0
E95: 821200 | F95: Nabavka građevina | G95: =Godišnji!G94 -> 8800 | H95: 0 | I95: =SUM(G95:H95) -> 8800 | L95: =SUM(J95:K95) -> 0 | O95: =SUM(M95:N95) -> 0 | R95: =SUM(P95:Q95) -> 0 | S95: =P95+M95+J95 -> 0 | T95: =Q95+N95+K95 -> 0 | U95: =SUM(S95:T95) -> 0
E96: 821300 | F96: Nabavka opreme | G96: =Godišnji!G95 -> 59200 | H96: 0 | I96: =SUM(G96:H96) -> 59200 | L96: =SUM(J96:K96) -> 0 | O96: =SUM(M96:N96) -> 0 | R96: =SUM(P96:Q96) -> 0 | S96: 0 | T96: 0 | U96: =SUM(S96:T96) -> 0
E97: 821500 | F97: Nabavka stalnih sredstava u obliku prava | G97: =Godišnji!G96 -> 100000 | H97: 186827 | I97: =SUM(G97:H97) -> 286827 | L97: =SUM(J97:K97) -> 0 | O97: =SUM(M97:N97) -> 0 | R97: =SUM(P97:Q97) -> 0 | S97: =P97+M97+J97 -> 0 | T97: =Q97+N97+K97 -> 0 | U97: =SUM(S97:T97) -> 0
F98: Ukupno za korisnika Vlada Županije Posavske | G98: =G59+G63+G67+G69+G81+G92+G94 -> 2676490 | H98: 211827 | I98: 2888317 | J98: 0 | K98: 0 | L98: 0 | M98: 0 | N98: 0 | O98: 0 | P98: 0 | Q98: 0 | R98: 0 | S98: 0 | T98: 0 | U98: 0
A100: 11 | B100: 01 | C100: 0002 | F100: URED ZA RASELJENE
E101: 611000 | F101: Plaće i naknade troškova zaposlenih | G101: =SUM(G102:G104) -> 6240 | H101: =SUM(H102:H104) -> 0 | I101: 6240 | J101: 0 | K101: 0 | L101: 0 | M101: 0 | N101: 0 | O101: 0 | P101: 0 | Q101: 0 | R101: 0 | S101: 0 | T101: 0 | U101: 0
E102: 611100 | F102: Bruto plaće i naknade | G102: =Godišnji!G101 -> 2000 | H102: 0 | I102: =SUM(G102:H102) -> 2000 | L102: =SUM(J102:K102) -> 0 | O102: =SUM(M102:N102) -> 0 | R102: =SUM(P102:Q102) -> 0 | S102: =P102+M102+J102 -> 0 | T102: =Q102+N102+K102 -> 0 | U102: =SUM(S102:T102) -> 0
E103: 611200 | F103: Naknade troškova zaposlenih | G103: =Godišnji!G102 -> 840 | H103: 0 | I103: =SUM(G103:H103) -> 840 | L103: =SUM(J103:K103) -> 0 | O103: =SUM(M103:N103) -> 0 | R103: =SUM(P103:Q103) -> 0 | S103: =P103+M103+J103 -> 0 | T103: =Q103+N103+K103 -> 0 | U103: =SUM(S103:T103) -> 0
E104: 611200 | F104: Naknade troškova zaposlenih - volonteri | G104: =Godišnji!G103 -> 3400 | H104: 0 | I104: 3400 | L104: 0 | O104: 0 | R104: 0 | S104: 0 | T104: 0 | U104: 0
E105: 612000 | F105: Doprinosi poslodavca | G105: =G106 -> 300 | H105: =H106 -> 0 | I105: 300 | J105: 0 | K105: 0 | L105: 0 | M105: 0 | N105: 0 | O105: 0 | P105: 0 | Q105: 0 | R105: 0 | S105: 0 | T105: 0 | U105: 0
E106: 612100 | F106: Doprinosi poslodavca | G106: =Godišnji!G105 -> 300 | H106: 0 | I106: =SUM(G106:H106) -> 300 | L106: =SUM(J106:K106) -> 0 | O106: =SUM(M106:N106) -> 0 | R106: =SUM(P106:Q106) -> 0 | S106: =P106+M106+J106 -> 0 | T106: =Q106+N106+K106 -> 0 | U106: =SUM(S106:T106) -> 0
E107: 613000 | F107: Izdaci za materijal, sitan inventar i usluge | G107: =SUM(G108:G117) -> 14100 | H107: =SUM(H108:H117) -> 0 | I107: 14100 | J107: 0 | K107: 0 | L107: 0 | M107: 0 | N107: 0 | O107: 0 | P107: 0 | Q107: 0 | R107: 0 | S107: 0 | T107: 0 | U107: 0
E108: 613100 | F108: Putni troškovi | G108: =Godišnji!G107 -> 300 | H108: 0 | I108: =SUM(G108:H108) -> 300 | L108: =SUM(J108:K108) -> 0 | O108: =SUM(M108:N108) -> 0 | R108: =SUM(P108:Q108) -> 0 | S108: =P108+M108+J108 -> 0 | T108: =Q108+N108+K108 -> 0 | U108: =SUM(S108:T108) -> 0
E109: 613200 | F109: Izdaci za energiju | G109: =Godišnji!G108 -> 0 | H109: 0 | I109: 0 | L109: 0 | O109: 0 | R109: 0 | S109: 0 | T109: 0 | U109: 0
E110: 613300 | F110: Izdaci za komunikaciju i komunalne usluge | G110: =Godišnji!G109 -> 1100 | H110: 0 | I110: 1100 | L110: 0 | O110: 0 | R110: 0 | S110: 0 | T110: 0 | U110: 0
E111: 613400 | F111: Nabava materijala i sitnog inventara | G111: =Godišnji!G110 -> 0 | H111: 0 | I111: 0 | L111: 0 | O111: 0 | R111: 0 | S111: 0 | T111: 0 | U111: 0
E112: 613500 | F112: Izdaci za usluge prijevoza i goriva | G112: =Godišnji!G111 -> 0 | H112: 0 | I112: 0 | L112: 0 | O112: 0 | R112: 0 | S112: 0 | T112: 0 | U112: 0
E113: 613600 | F113: Unajmljivanje imovine, opreme i nemat.imovine | G113: =Godišnji!G112 -> 0 | H113: 0 | I113: 0 | L113: 0 | O113: 0 | R113: 0 | S113: 0 | T113: 0 | U113: 0
E114: 613700 | F114: Izdaci za tekuće održavanje | G114: =Godišnji!G113 -> 400 | H114: 0 | I114: 400 | L114: 0 | O114: 0 | R114: 0 | S114: 0 | T114: 0 | U114: 0
E115: 613800 | F115: Izdaci osiguranja, bank.usluga i usluga PP | G115: =Godišnji!G114 -> 0 | H115: 0 | I115: 0 | L115: 0 | O115: 0 | R115: 0 | S115: 0 | T115: 0 | U115: 0
E116: 613900 | F116: Ugovorene i druge posebne usluge | G116: =Godišnji!G115 -> 9000 | H116: 0 | I116: 9000 | L116: 0 | O116: 0 | R116: 0 | S116: 0 | T116: 0 | U116: 0
E117: 613900 | F117: Ugovorene i druge posebne usluge - volonteri | G117: =Godišnji!G116 -> 3300 | H117: 0 | I117: 3300 | L117: 0 | O117: 0 | R117: 0 | S117: 0 | T117: 0 | U117: 0
E118: 614000 | F118: Tekući grantovi i drugi tekući rashodi | G118: =G119 -> 12000 | H118: 0 | I118: 12000 | J118: 0 | K118: 0 | L118: 0 | M118: 0 | N118: 0 | O118: 0 | P118: 0 | Q118: 0 | R118: 0 | S118: 0 | T118: 0 | U118: 0
E119: 614200 | F119: Grantovi za povratak raseljenih osoba | G119: =Godišnji!G118 -> 12000 | H119: 0 | I119: =SUM(G119:H119) -> 12000 | L119: =SUM(J119:K119) -> 0 | O119: =SUM(M119:N119) -> 0 | R119: =SUM(P119:Q119) -> 0 | S119: =P119+M119+J119 -> 0 | T119: =Q119+N119+K119 -> 0 | U119: =SUM(S119:T119) -> 0
E120: 821000 | F120: Izdaci za nabavku stalnih sredstava | G120: =SUM(G121:G122) -> 1000 | H120: =SUM(H121:H122) -> 0 | I120: 1000 | J120: 0 | K120: 0 | L120: 0 | M120: 0 | N120: 0 | O120: 0 | P120: 0 | Q120: 0 | R120: 0 | S120: 0 | T120: 0 | U120: 0
E121: 821200 | F121: Nabavka građevina | G121: =Godišnji!G120 -> 0 | H121: 0 | I121: =SUM(G121:H121) -> 0 | L121: =SUM(J121:K121) -> 0 | O121: =SUM(M121:N121) -> 0 | R121: =SUM(P121:Q121) -> 0 | S121: =P121+M121+J121 -> 0 | T121: =Q121+N121+K121 -> 0 | U121: =SUM(S121:T121) -> 0
E122: 821300 | F122: Nabavka opreme | G122: =Godišnji!G121 -> 1000 | H122: 0 | I122: =SUM(G122:H122) -> 1000 | L122: =SUM(J122:K122) -> 0 | O122: =SUM(M122:N122) -> 0 | R122: =SUM(P122:Q122) -> 0 | S122: 0 | T122: 0 | U122: =SUM(S122:T122) -> 0
F123: Ukupno za korisnika Ured za raseljene | G123: =G101+G105+G107+G118+G120 -> 33640 | H123: =H101+H105+H107+H118+H120 -> 0 | I123: 33640 | J123: 0 | K123: 0 | L123: 0 | M123: 0 | N123: 0 | O123: 0 | P123: 0 | Q123: 0 | R123: 0 | S123: 0 | T123: 0 | U123: 0
A125: 11 | B125: 01 | C125: 0003 | F125: URED ZA ZAKONODAVSTVO
E126: 611000 | F126: Plaće i naknade troškova zaposlenih | G126: =SUM(G127:G129) -> 30840 | H126: =SUM(H127:H129) -> 0 | I126: 30840 | J126: 0 | K126: 0 | L126: 0 | M126: 0 | N126: 0 | O126: 0 | P126: 0 | Q126: 0 | R126: 0 | S126: 0 | T126: 0 | U126: 0
E127: 611100 | F127: Bruto plaće i naknade | G127: =Godišnji!G126 -> 27800 | H127: 0 | I127: =SUM(G127:H127) -> 27800 | L127: =SUM(J127:K127) -> 0 | O127: =SUM(M127:N127) -> 0 | R127: =SUM(P127:Q127) -> 0 | S127: =P127+M127+J127 -> 0 | T127: =Q127+N127+K127 -> 0 | U127: =SUM(S127:T127) -> 0
E128: 611200 | F128: Naknade troškova zaposlenih | G128: =Godišnji!G127 -> 3040 | H128: 0 | I128: =SUM(G128:H128) -> 3040 | L128: =SUM(J128:K128) -> 0 | O128: =SUM(M128:N128) -> 0 | R128: =SUM(P128:Q128) -> 0 | S128: =P128+M128+J128 -> 0 | T128: =Q128+N128+K128 -> 0 | U128: =SUM(S128:T128) -> 0
E129: 611200 | F129: Naknade troškova zaposlenih - volonteri | G129: =Godišnji!G128 -> 0 | H129: 0 | I129: 0 | L129: 0 | O129: 0 | R129: 0 | S129: 0 | T129: 0 | U129: 0
E130: 612000 | F130: Doprinosi poslodavca | G130: =G131 -> 3100 | H130: =H131 -> 0 | I130: 3100 | J130: 0 | K130: 0 | L130: 0 | M130: 0 | N130: 0 | O130: 0 | P130: 0 | Q130: 0 | R130: 0 | S130: 0 | T130: 0 | U130: 0
E131: 612100 | F131: Doprinosi poslodavca | G131: =Godišnji!G130 -> 3100 | H131: 0 | I131: =SUM(G131:H131) -> 3100 | L131: =SUM(J131:K131) -> 0 | O131: =SUM(M131:N131) -> 0 | R131: =SUM(P131:Q131) -> 0 | S131: =P131+M131+J131 -> 0 | T131: =Q131+N131+K131 -> 0 | U131: =SUM(S131:T131) -> 0
E132: 613000 | F132: Izdaci za materijal, sitan inventar i usluge | G132: =SUM(G133:G142) -> 23300 | H132: =SUM(H133:H142) -> 0 | I132: 23300 | J132: 0 | K132: 0 | L132: 0 | M132: 0 | N132: 0 | O132: 0 | P132: 0 | Q132: 0 | R132: 0 | S132: 0 | T132: 0 | U132: 0
E133: 613100 | F133: Putni troškovi | G133: =Godišnji!G132 -> 300 | H133: 0 | I133: =SUM(G133:H133) -> 300 | L133: =SUM(J133:K133) -> 0 | O133: =SUM(M133:N133) -> 0 | R133: =SUM(P133:Q133) -> 0 | S133: =P133+M133+J133 -> 0 | T133: =Q133+N133+K133 -> 0 | U133: =SUM(S133:T133) -> 0
E134: 613200 | F134: Izdaci za energiju | G134: =Godišnji!G133 -> 0 | H134: 0 | I134: 0 | L134: 0 | O134: 0 | R134: 0 | S134: 0 | T134: 0 | U134: 0
E135: 613300 | F135: Izdaci za komunikaciju i komunalne usluge | G135: =Godišnji!G134 -> 0 | H135: 0 | I135: 0 | L135: 0 | O135: 0 | R135: 0 | S135: 0 | T135: 0 | U135: 0
E136: 613400 | F136: Nabava materijala i sitnog inventara | G136: =Godišnji!G135 -> 0 | H136: 0 | I136: 0 | L136: 0 | O136: 0 | R136: 0 | S136: 0 | T136: 0 | U136: 0
E137: 613500 | F137: Izdaci za usluge prijevoza i goriva | G137: =Godišnji!G136 -> 0 | H137: 0 | I137: 0 | L137: 0 | O137: 0 | R137: 0 | S137: 0 | T137: 0 | U137: 0
E138: 613600 | F138: Unajmljivanje imovine, opreme i nemat.imovine | G138: =Godišnji!G137 -> 0 | H138: 0 | I138: 0 | L138: 0 | O138: 0 | R138: 0 | S138: 0 | T138: 0 | U138: 0
E139: 613700 | F139: Izdaci za tekuće održavanje | G139: =Godišnji!G138 -> 0 | H139: 0 | I139: 0 | L139: 0 | O139: 0 | R139: 0 | S139: 0 | T139: 0 | U139: 0
E140: 613800 | F140: Izdaci osiguranja, bank.usluga i usluga PP | G140: =Godišnji!G139 -> 0 | H140: 0 | I140: 0 | L140: 0 | O140: 0 | R140: 0 | S140: 0 | T140: 0 | U140: 0
E141: 613900 | F141: Ugovorene i druge posebne usluge | G141: =Godišnji!G140 -> 23000 | H141: 0 | I141: 23000 | L141: 0 | O141: 0 | R141: 0 | S141: 0 | T141: 0 | U141: 0
E142: 613900 | F142: Ugovorene i druge posebne usluge - volonteri | G142: =Godišnji!G141 -> 0 | H142: 0 | I142: 0 | L142: 0 | O142: 0 | R142: 0 | S142: 0 | T142: 0 | U142: 0
E143: 821000 | F143: Izdaci za nabavku stalnih sredstava | G143: =SUM(G144:G145) -> 0 | H143: =SUM(H144:H145) -> 0 | I143: 0 | J143: 0 | K143: 0 | L143: 0 | M143: 0 | N143: 0 | O143: 0 | P143: 0 | Q143: 0 | R143: 0 | S143: 0 | T143: 0 | U143: 0
E144: 821200 | F144: Nabavka građevina | G144: =Godišnji!G143 -> 0 | H144: 0 | I144: =SUM(G144:H144) -> 0 | L144: =SUM(J144:K144) -> 0 | O144: =SUM(M144:N144) -> 0 | R144: =SUM(P144:Q144) -> 0 | S144: =P144+M144+J144 -> 0 | T144: =Q144+N144+K144 -> 0 | U144: =SUM(S144:T144) -> 0
E145: 821300 | F145: Nabavka opreme | G145: =Godišnji!G144 -> 0 | H145: 0 | I145: =SUM(G145:H145) -> 0 | L145: =SUM(J145:K145) -> 0 | O145: =SUM(M145:N145) -> 0 | R145: =SUM(P145:Q145) -> 0 | S145: 0 | T145: 0 | U145: =SUM(S145:T145) -> 0
F146: Ukupno za korisnika Ured za zakonodavstvo | G146: =G126+G130+G132+G143 -> 57240 | H146: =H126+H130+H132+H143 -> 0 | I146: 57240 | J146: 0 | K146: 0 | L146: 0 | M146: 0 | N146: 0 | O146: 0 | P146: 0 | Q146: 0 | R146: 0 | S146: 0 | T146: 0 | U146: 0
A148: 11 | B148: 01 | C148: 0004 | F148: SLUŽBA ZA ODNOSE S JAVNOŠĆU
E149: 611000 | F149: Plaće i naknade troškova zaposlenih | G149: =SUM(G150:G152) -> 75820 | H149: =SUM(H150:H152) -> 0 | I149: 75820 | J149: 0 | K149: 0 | L149: 0 | M149: 0 | N149: 0 | O149: 0 | P149: 0 | Q149: 0 | R149: 0 | S149: 0 | T149: 0 | U149: 0
E150: 611100 | F150: Bruto plaće i naknade | G150: =Godišnji!G149 -> 61200 | H150: 0 | I150: =SUM(G150:H150) -> 61200 | L150: =SUM(J150:K150) -> 0 | O150: =SUM(M150:N150) -> 0 | R150: =SUM(P150:Q150) -> 0 | S150: =P150+M150+J150 -> 0 | T150: =Q150+N150+K150 -> 0 | U150: =SUM(S150:T150) -> 0
E151: 611200 | F151: Naknade troškova zaposlenih | G151: =Godišnji!G150 -> 11520 | H151: 0 | I151: =SUM(G151:H151) -> 11520 | L151: =SUM(J151:K151) -> 0 | O151: =SUM(M151:N151) -> 0 | R151: =SUM(P151:Q151) -> 0 | S151: =P151+M151+J151 -> 0 | T151: =Q151+N151+K151 -> 0 | U151: =SUM(S151:T151) -> 0
E152: 611200 | F152: Naknade troškova zaposlenih - volonteri | G152: =Godišnji!G151 -> 3100 | H152: 0 | I152: 3100 | L152: 0 | O152: 0 | R152: 0 | S152: 0 | T152: 0 | U152: 0
E153: 612000 | F153: Doprinosi poslodavca | G153: =G154 -> 6800 | H153: =H154 -> 0 | I153: 6800 | J153: 0 | K153: 0 | L153: 0 | M153: 0 | N153: 0 | O153: 0 | P153: 0 | Q153: 0 | R153: 0 | S153: 0 | T153: 0 | U153: 0
E154: 612100 | F154: Doprinosi poslodavca | G154: =Godišnji!G153 -> 6800 | H154: 0 | I154: =SUM(G154:H154) -> 6800 | L154: =SUM(J154:K154) -> 0 | O154: =SUM(M154:N154) -> 0 | R154: =SUM(P154:Q154) -> 0 | S154: =P154+M154+J154 -> 0 | T154: =Q154+N154+K154 -> 0 | U154: =SUM(S154:T154) -> 0
E155: 613000 | F155: Izdaci za materijal, sitan inventar i usluge | G155: =SUM(G156:G165) -> 16200 | H155: =SUM(H156:H165) -> 0 | I155: 16200 | J155: 0 | K155: 0 | L155: 0 | M155: 0 | N155: 0 | O155: 0 | P155: 0 | Q155: 0 | R155: 0 | S155: 0 | T155: 0 | U155: 0
E156: 613100 | F156: Putni troškovi | G156: =Godišnji!G155 -> 950 | H156: 0 | I156: =SUM(G156:H156) -> 950 | L156: =SUM(J156:K156) -> 0 | O156: =SUM(M156:N156) -> 0 | R156: =SUM(P156:Q156) -> 0 | S156: =P156+M156+J156 -> 0 | T156: =Q156+N156+K156 -> 0 | U156: =SUM(S156:T156) -> 0
E157: 613200 | F157: Izdaci za energiju | G157: =Godišnji!G156 -> 0 | H157: 0 | I157: 0 | L157: 0 | O157: 0 | R157: 0 | S157: 0 | T157: 0 | U157: 0
E158: 613300 | F158: Izdaci za komunikaciju i komunalne usluge | G158: =Godišnji!G157 -> 2500 | H158: 0 | I158: 2500 | L158: 0 | O158: 0 | R158: 0 | S158: 0 | T158: 0 | U158: 0
E159: 613400 | F159: Nabava materijala i sitnog inventara | G159: =Godišnji!G158 -> 0 | H159: 0 | I159: 0 | L159: 0 | O159: 0 | R159: 0 | S159: 0 | T159: 0 | U159: 0
E160: 613500 | F160: Izdaci za usluge prijevoza i goriva | G160: =Godišnji!G159 -> 0 | H160: 0 | I160: 0 | L160: 0 | O160: 0 | R160: 0 | S160: 0 | T160: 0 | U160: 0
E161: 613600 | F161: Unajmljivanje imovine, opreme i nemat.imovine | G161: =Godišnji!G160 -> 0 | H161: 0 | I161: 0 | L161: 0 | O161: 0 | R161: 0 | S161: 0 | T161: 0 | U161: 0
E162: 613700 | F162: Izdaci za tekuće održavanje | G162: =Godišnji!G161 -> 400 | H162: 0 | I162: 400 | L162: 0 | O162: 0 | R162: 0 | S162: 0 | T162: 0 | U162: 0
E163: 613800 | F163: Izdaci osiguranja, bank.usluga i usluga PP | G163: =Godišnji!G162 -> 0 | H163: 0 | I163: 0 | L163: 0 | O163: 0 | R163: 0 | S163: 0 | T163: 0 | U163: 0
E164: 613900 | F164: Ugovorene i druge posebne usluge | G164: =Godišnji!G163 -> 8800 | H164: 0 | I164: 8800 | L164: 0 | O164: 0 | R164: 0 | S164: 0 | T164: 0 | U164: 0
E165: 613900 | F165: Ugovorene i druge posebne usluge - volonteri | G165: =Godišnji!G164 -> 3550 | H165: 0 | I165: 3550 | L165: 0 | O165: 0 | R165: 0 | S165: 0 | T165: 0 | U165: 0
E166: 821000 | F166: Izdaci za nabavku stalnih sredstava | G166: =SUM(G167:G168) -> 4450 | H166: =SUM(H167:H168) -> 0 | I166: 4450 | J166: 0 | K166: 0 | L166: 0 | M166: 0 | N166: 0 | O166: 0 | P166: 0 | Q166: 0 | R166: 0 | S166: 0 | T166: 0 | U166: 0
E167: 821200 | F167: Nabavka građevina | G167: =Godišnji!G166 -> 0 | H167: 0 | I167: =SUM(G167:H167) -> 0 | L167: =SUM(J167:K167) -> 0 | O167: =SUM(M167:N167) -> 0 | R167: =SUM(P167:Q167) -> 0 | S167: =P167+M167+J167 -> 0 | T167: =Q167+N167+K167 -> 0 | U167: =SUM(S167:T167) -> 0
E168: 821300 | F168: Nabavka opreme | G168: =Godišnji!G167 -> 4450 | H168: 0 | I168: =SUM(G168:H168) -> 4450 | L168: =SUM(J168:K168) -> 0 | O168: =SUM(M168:N168) -> 0 | R168: =SUM(P168:Q168) -> 0 | S168: 0 | T168: 0 | U168: =SUM(S168:T168) -> 0
F169: Ukupno za korisnika Služba za odnose s javnošću | G169: =G149+G153+G155+G166 -> 103270 | H169: =H149+H153+H155+H166 -> 0 | I169: 103270 | J169: 0 | K169: 0 | L169: 0 | M169: 0 | N169: 0 | O169: 0 | P169: 0 | Q169: 0 | R169: 0 | S169: 0 | T169: 0 | U169: 0
A171: 11 | B171: 01 | C171: 0005 | F171: URED ZA GOSPODARSKI RAZVOJ ŽP
E172: 611000 | F172: Plaće i naknade troškova zaposlenih | G172: =SUM(G173:G175) -> 76860 | H172: =SUM(H173:H175) -> 0 | I172: 76860 | J172: 0 | K172: 0 | L172: 0 | M172: 0 | N172: 0 | O172: 0 | P172: 0 | Q172: 0 | R172: 0 | S172: 0 | T172: 0 | U172: 0
E173: 611100 | F173: Bruto plaće i naknade | G173: =Godišnji!G172 -> 52300 | H173: 0 | I173: =SUM(G173:H173) -> 52300 | L173: =SUM(J173:K173) -> 0 | O173: =SUM(M173:N173) -> 0 | R173: =SUM(P173:Q173) -> 0 | S173: =P173+M173+J173 -> 0 | T173: =Q173+N173+K173 -> 0 | U173: =SUM(S173:T173) -> 0
E174: 611200 | F174: Naknade troškova zaposlenih | G174: =Godišnji!G173 -> 15760 | H174: 0 | I174: =SUM(G174:H174) -> 15760 | L174: =SUM(J174:K174) -> 0 | O174: =SUM(M174:N174) -> 0 | R174: =SUM(P174:Q174) -> 0 | S174: =P174+M174+J174 -> 0 | T174: =Q174+N174+K174 -> 0 | U174: =SUM(S174:T174) -> 0
E175: 611200 | F175: Naknade troškova zaposlenih - volonteri | G175: =Godišnji!G174 -> 8800 | H175: 0 | I175: 8800 | L175: 0 | O175: 0 | R175: 0 | S175: 0 | T175: 0 | U175: 0
E176: 612000 | F176: Doprinosi poslodavca | G176: =G177 -> 5900 | H176: =H177 -> 0 | I176: 5900 | J176: 0 | K176: 0 | L176: 0 | M176: 0 | N176: 0 | O176: 0 | P176: 0 | Q176: 0 | R176: 0 | S176: 0 | T176: 0 | U176: 0
E177: 612100 | F177: Doprinosi poslodavca | G177: =Godišnji!G176 -> 5900 | H177: 0 | I177: =SUM(G177:H177) -> 5900 | L177: =SUM(J177:K177) -> 0 | O177: =SUM(M177:N177) -> 0 | R177: =SUM(P177:Q177) -> 0 | S177: =P177+M177+J177 -> 0 | T177: =Q177+N177+K177 -> 0 | U177: =SUM(S177:T177) -> 0
E178: 613000 | F178: Izdaci za materijal, sitan inventar i usluge | G178: =SUM(G179:G188) -> 13900 | H178: =SUM(H179:H188) -> 0 | I178: 13900 | J178: 0 | K178: 0 | L178: 0 | M178: 0 | N178: 0 | O178: 0 | P178: 0 | Q178: 0 | R178: 0 | S178: 0 | T178: 0 | U178: 0
E179: 613100 | F179: Putni troškovi | G179: =Godišnji!G178 -> 2800 | H179: 0 | I179: =SUM(G179:H179) -> 2800 | L179: =SUM(J179:K179) -> 0 | O179: =SUM(M179:N179) -> 0 | R179: =SUM(P179:Q179) -> 0 | S179: =P179+M179+J179 -> 0 | T179: =Q179+N179+K179 -> 0 | U179: =SUM(S179:T179) -> 0
E180: 613200 | F180: Izdaci za energiju | G180: =Godišnji!G179 -> 0 | H180: 0 | I180: 0 | L180: 0 | O180: 0 | R180: 0 | S180: 0 | T180: 0 | U180: 0
E181: 613300 | F181: Izdaci za komunikaciju i komunalne usluge | G181: =Godišnji!G180 -> 600 | H181: 0 | I181: 600 | L181: 0 | O181: 0 | R181: 0 | S181: 0 | T181: 0 | U181: 0
E182: 613400 | F182: Nabava materijala i sitnog inventara | G182: =Godišnji!G181 -> 600 | H182: 0 | I182: 600 | L182: 0 | O182: 0 | R182: 0 | S182: 0 | T182: 0 | U182: 0
E183: 613500 | F183: Izdaci za usluge prijevoza i goriva | G183: =Godišnji!G182 -> 0 | H183: 0 | I183: 0 | L183: 0 | O183: 0 | R183: 0 | S183: 0 | T183: 0 | U183: 0
E184: 613600 | F184: Unajmljivanje imovine, opreme i nemat.imovine | G184: =Godišnji!G183 -> 0 | H184: 0 | I184: 0 | L184: 0 | O184: 0 | R184: 0 | S184: 0 | T184: 0 | U184: 0
E185: 613700 | F185: Izdaci za tekuće održavanje | G185: =Godišnji!G184 -> 300 | H185: 0 | I185: 300 | L185: 0 | O185: 0 | R185: 0 | S185: 0 | T185: 0 | U185: 0
E186: 613800 | F186: Izdaci osiguranja, bank.usluga i usluga PP | G186: =Godišnji!G185 -> 0 | H186: 0 | I186: 0 | L186: 0 | O186: 0 | R186: 0 | S186: 0 | T186: 0 | U186: 0
E187: 613900 | F187: Ugovorene i druge posebne usluge | G187: =Godišnji!G186 -> 1500 | H187: 0 | I187: 1500 | L187: 0 | O187: 0 | R187: 0 | S187: 0 | T187: 0 | U187: 0
E188: 613900 | F188: Ugovorene i druge posebne usluge - volonteri | G188: =Godišnji!G187 -> 8100 | H188: 0 | I188: 8100 | L188: 0 | O188: 0 | R188: 0 | S188: 0 | T188: 0 | U188: 0
E189: 821000 | F189: Izdaci za nabavku stalnih sredstava | G189: =SUM(G190:G191) -> 4500 | H189: =SUM(H190:H191) -> 0 | I189: 4500 | J189: 0 | K189: 0 | L189: 0 | M189: 0 | N189: 0 | O189: 0 | P189: 0 | Q189: 0 | R189: 0 | S189: 0 | T189: 0 | U189: 0
E190: 821200 | F190: Nabavka građevina | G190: =Godišnji!G189 -> 0 | H190: 0 | I190: =SUM(G190:H190) -> 0 | L190: =SUM(J190:K190) -> 0 | O190: =SUM(M190:N190) -> 0 | R190: =SUM(P190:Q190) -> 0 | S190: =P190+M190+J190 -> 0 | T190: =Q190+N190+K190 -> 0 | U190: =SUM(S190:T190) -> 0
E191: 821300 | F191: Nabavka opreme | G191: =Godišnji!G190 -> 4500 | H191: 0 | I191: =SUM(G191:H191) -> 4500 | L191: =SUM(J191:K191) -> 0 | O191: =SUM(M191:N191) -> 0 | R191: =SUM(P191:Q191) -> 0 | S191: 0 | T191: 0 | U191: =SUM(S191:T191) -> 0
F192: Ukupno za korisnika Ured za gospodarski razvoj ŽP | G192: =G172+G176+G178+G189 -> 101160 | H192: =H172+H176+H178+H189 -> 0 | I192: 101160 | J192: 0 | K192: 0 | L192: 0 | M192: 0 | N192: 0 | O192: 0 | P192: 0 | Q192: 0 | R192: 0 | S192: 0 | T192: 0 | U192: 0
A194: 12 | B194: 01 | C194: 0001 | F194: ZAJEDNIČKA SLUŽBA VLADE
E195: 611000 | F195: Plaće i naknade troškova zaposlenih | G195: =SUM(G196:G198) -> 241160 | H195: =SUM(H196:H198) -> 0 | I195: 241160 | J195: 0 | K195: 0 | L195: 0 | M195: 0 | N195: 0 | O195: 0 | P195: 0 | Q195: 0 | R195: 0 | S195: 0 | T195: 0 | U195: 0
E196: 611100 | F196: Bruto plaće i naknade | G196: =Godišnji!G195 -> 162100 | H196: 0 | I196: =SUM(G196:H196) -> 162100 | L196: =SUM(J196:K196) -> 0 | O196: =SUM(M196:N196) -> 0 | R196: =SUM(P196:Q196) -> 0 | S196: =P196+M196+J196 -> 0 | T196: =Q196+N196+K196 -> 0 | U196: =SUM(S196:T196) -> 0
E197: 611200 | F197: Naknade troškova zaposlenih | G197: =Godišnji!G196 -> 58260 | H197: 0 | I197: =SUM(G197:H197) -> 58260 | L197: =SUM(J197:K197) -> 0 | O197: =SUM(M197:N197) -> 0 | R197: =SUM(P197:Q197) -> 0 | S197: =P197+M197+J197 -> 0 | T197: =Q197+N197+K197 -> 0 | U197: =SUM(S197:T197) -> 0
E198: 611200 | F198: Naknade troškova zaposlenih - volonteri | G198: =Godišnji!G197 -> 20800 | H198: 0 | I198: 20800 | L198: 0 | O198: 0 | R198: 0 | S198: 0 | T198: 0 | U198: 0
E199: 612000 | F199: Doprinosi poslodavca | G199: =G200 -> 17600 | H199: =H200 -> 0 | I199: 17600 | J199: 0 | K199: 0 | L199: 0 | M199: 0 | N199: 0 | O199: 0 | P199: 0 | Q199: 0 | R199: 0 | S199: 0 | T199: 0 | U199: 0
E200: 612100 | F200: Doprinosi poslodavca | G200: =Godišnji!G199 -> 17600 | H200: 0 | I200: =SUM(G200:H200) -> 17600 | L200: =SUM(J200:K200) -> 0 | O200: =SUM(M200:N200) -> 0 | R200: =SUM(P200:Q200) -> 0 | S200: =P200+M200+J200 -> 0 | T200: =Q200+N200+K200 -> 0 | U200: =SUM(S200:T200) -> 0
E201: 613000 | F201: Izdaci za materijal, sitan inventar i usluge | G201: =SUM(G202:G211) -> 400400 | H201: =SUM(H202:H211) -> 0 | I201: 400400 | J201: 0 | K201: 0 | L201: 0 | M201: 0 | N201: 0 | O201: 0 | P201: 0 | Q201: 0 | R201: 0 | S201: 0 | T201: 0 | U201: 0
E202: 613100 | F202: Putni troškovi | G202: =Godišnji!G201 -> 6000 | H202: 0 | I202: =SUM(G202:H202) -> 6000 | L202: =SUM(J202:K202) -> 0 | O202: =SUM(M202:N202) -> 0 | R202: =SUM(P202:Q202) -> 0 | S202: =P202+M202+J202 -> 0 | T202: =Q202+N202+K202 -> 0 | U202: =SUM(S202:T202) -> 0
E203: 613200 | F203: Izdaci za energiju | G203: =Godišnji!G202 -> 104200 | H203: 0 | I203: 104200 | L203: 0 | O203: 0 | R203: 0 | S203: 0 | T203: 0 | U203: 0
E204: 613300 | F204: Izdaci za komunikaciju i komunalne usluge | G204: =Godišnji!G203 -> 44000 | H204: 0 | I204: 44000 | L204: 0 | O204: 0 | R204: 0 | S204: 0 | T204: 0 | U204: 0
E205: 613400 | F205: Nabava materijala i sitnog inventara | G205: =Godišnji!G204 -> 79000 | H205: 0 | I205: 79000 | L205: 0 | O205: 0 | R205: 0 | S205: 0 | T205: 0 | U205: 0
E206: 613500 | F206: Izdaci za usluge prijevoza i goriva | G206: =Godišnji!G205 -> 41400 | H206: 0 | I206: 41400 | L206: 0 | O206: 0 | R206: 0 | S206: 0 | T206: 0 | U206: 0
E207: 613600 | F207: Unajmljivanje imovine, opreme i nemat.imovine | G207: =Godišnji!G206 -> 0 | H207: 0 | I207: 0 | L207: 0 | O207: 0 | R207: 0 | S207: 0 | T207: 0 | U207: 0
E208: 613700 | F208: Izdaci za tekuće održavanje | G208: =Godišnji!G207 -> 40000 | H208: 0 | I208: 40000 | L208: 0 | O208: 0 | R208: 0 | S208: 0 | T208: 0 | U208: 0
... 692 more rows

Sheet Mjesecni
F1: ="PRIJEDLOG MJESEČNOG OPERATIVNOG PLANA RASHODA I IZDATAKA ZA "&E5&" 2016. GODINE" -> PRIJEDLOG MJESEČNOG OPERATIVNOG PLANA RASHODA I IZDATAKA ZA 10. mjesec 2016. GODINE
G2: =E4 -> 11010001
A3: Proračunski korisnik: | E3: =INDEX(Lista!A:B,MATCH($E$4,Lista!A:A,0),2) -> VLADA ŽUPANIJE POSAVSKE
A4: Organizacijski kod: | E4: 11010001
A5: Mjesec: | E5: 10. mjesec
A7: Razdjel | B7: Glava | C7: Potroš. jedinica | E7: Ekonom. kod | F7: Opis | H7: Proračun za 2016. godinu | K7: =INDEX(Lista!I:K,MATCH($E$5,Lista!I:I,0),3) -> Listopad 2016. god.
G8: Rashodi i | H8: Rashodi iz | I8: Ukupni | J8: Rashodi i | K8: Rashodi iz | L8: Ukupni
G9: izdaci iz | H9: namj.sr., | I9: rashodi i | J9: izdaci iz | K9: namj.sr., | L9: rashodi i
G10: proračuna | H10: tek. trans. i don. | I10: izdaci | J10: proračuna | K10: tek. trans. i don. | L10: izdaci
A11: 1 | B11: 2 | C11: 3 | E11: 4 | F11: 5 | G11: 6 | H11: 7 | I11: 8 | J11: 9 | K11: 10 | L11: 11
A12: 10 | B12: 01 | C12: 0001 | F12: SKUPŠTINA ŽUPANIJE POSAVSKE
E13: 611000 | F13: Plaće i naknade troškova zaposlenih | G13: =SUM(G14:G16) -> 415800 | H13: =SUM(H14:H16) -> 0 | I13: 415800 | J13: 0 | K13: 0 | L13: 0
E14: 611100 | F14: Bruto plaće i naknade | G14: =Godišnji!G13 -> 318500 | H14: =Godišnji!H13 -> 0 | I14: =SUM(G14:H14) -> 318500 | L14: =SUM(J14:K14) -> 0
E15: 611200 | F15: Naknade troškova zaposlenih | G15: =Godišnji!G14 -> 75700 | H15: =Godišnji!H14 -> 0 | I15: =SUM(G15:H15) -> 75700 | L15: =SUM(J15:K15) -> 0
E16: 611200 | F16: Naknade troškova zaposlenih - volonteri | G16: =Godišnji!G15 -> 21600 | H16: =Godišnji!H15 -> 0 | I16: 21600 | L16: 0
E17: 612000 | F17: Doprinosi poslodavca | G17: =G18 -> 34100 | H17: =H18 -> 0 | I17: 34100 | J17: 0 | K17: 0 | L17: 0
E18: 612100 | F18: Doprinosi poslodavca | G18: =Godišnji!G17 -> 34100 | H18: =Godišnji!H17 -> 0 | I18: =SUM(G18:H18) -> 34100 | L18: =SUM(J18:K18) -> 0
E19: 613000 | F19: Izdaci za materijal, sitan inventar i usluge | G19: =SUM(G20:G29) -> 288840 | H19: =SUM(H20:H29) -> 0 | I19: 288840 | J19: 0 | K19: 0 | L19: 0
E20: 613100 | F20: Putni troškovi | G20: =Godišnji!G19 -> 6000 | H20: =Godišnji!H19 -> 0 | I20: =SUM(G20:H20) -> 6000 | L20: =SUM(J20:K20) -> 0
E21: 613200 | F21: Izdaci za energiju | G21: =Godišnji!G20 -> 13600 | H21: =Godišnji!H20 -> 0 | I21: 13600 | L21: 0
E22: 613300 | F22: Izdaci za komunikaciju i komunalne usluge | G22: =Godišnji!G21 -> 7300 | H22: =Godišnji!H21 -> 0 | I22: 7300 | L22: 0
E23: 613400 | F23: Nabava materijala i sitnog inventara | G23: =Godišnji!G22 -> 5500 | H23: =Godišnji!H22 -> 0 | I23: 5500 | L23: 0
E24: 613500 | F24: Izdaci za usluge prijevoza i goriva | G24: =Godišnji!G23 -> 10000 | H24: =Godišnji!H23 -> 0 | I24: 10000 | L24: 0
E25: 613600 | F25: Unajmljivanje imovine, opreme i nemat.imovine | G25: =Godišnji!G24 -> 0 | H25: =Godišnji!H24 -> 0 | I25: 0 | L25: 0
E26: 613700 | F26: Izdaci za tekuće održavanje | G26: =Godišnji!G25 -> 8000 | H26: =Godišnji!H25 -> 0 | I26: 8000 | L26: 0
E27: 613800 | F27: Izdaci osiguranja, bank.usluga i usluga PP | G27: =Godišnji!G26 -> 340 | H27: =Godišnji!H26 -> 0 | I27: 340 | L27: 0
E28: 613900 | F28: Ugovorene i druge posebne usluge | G28: =Godišnji!G27 -> 215400 | H28: =Godišnji!H27 -> 0 | I28: 215400 | L28: 0
E29: 613900 | F29: Ugovorene i druge posebne usluge - volonteri | G29: =Godišnji!G28 -> 22700 | H29: =Godišnji!H28 -> 0 | I29: 22700 | L29: 0
E30: 821000 | F30: Izdaci za nabavku stalnih sredstava | G30: =SUM(G31:G32) -> 4000 | H30: =SUM(H31:H32) -> 0 | I30: 4000 | J30: 0 | K30: 0 | L30: 0
E31: 821200 | F31: Nabavka građevina | G31: =Godišnji!G30 -> 2000 | H31: =Godišnji!H30 -> 0 | I31: =SUM(G31:H31) -> 2000 | L31: =SUM(J31:K31) -> 0
E32: 821300 | F32: Nabavka opreme | G32: =Godišnji!G31 -> 2000 | H32: =Godišnji!H31 -> 0 | I32: =SUM(G32:H32) -> 2000 | L32: =SUM(J32:K32) -> 0
F33: Ukupno za korisnika Skupština Županije Posavske | G33: =G13+G17+G19+G30 -> 742740 | H33: =H13+H17+H19+H30 -> 0 | I33: 742740 | J33: 0 | K33: 0 | L33: 0
A35: 10 | B35: 01 | C35: 0002 | F35: STRUČNA SLUŽBA SKUPŠTINE
E36: 611000 | F36: Plaće i naknade troškova zaposlenih | G36: =SUM(G37:G39) -> 40820 | H36: =SUM(H37:H39) -> 0 | I36: 40820 | J36: 0 | K36: 0 | L36: 0
E37: 611100 | F37: Bruto plaće i naknade | G37: =Godišnji!G36 -> 30500 | H37: =Godišnji!H36 -> 0 | I37: =SUM(G37:H37) -> 30500 | L37: =SUM(J37:K37) -> 0
E38: 611200 | F38: Naknade troškova zaposlenih | G38: =Godišnji!G37 -> 10320 | H38: =Godišnji!H37 -> 0 | I38: =SUM(G38:H38) -> 10320 | L38: =SUM(J38:K38) -> 0
E39: 611200 | F39: Naknade troškova zaposlenih - volonteri | G39: =Godišnji!G38 -> 0 | H39: =Godišnji!H38 -> 0 | I39: 0 | L39: 0
E40: 612000 | F40: Doprinosi poslodavca | G40: =G41 -> 3400 | H40: =H41 -> 0 | I40: 3400 | J40: 0 | K40: 0 | L40: 0
E41: 612100 | F41: Doprinosi poslodavca | G41: =Godišnji!G40 -> 3400 | H41: =Godišnji!H40 -> 0 | I41: =SUM(G41:H41) -> 3400 | L41: =SUM(J41:K41) -> 0
E42: 613000 | F42: Izdaci za materijal, sitan inventar i usluge | G42: =SUM(G43:G52) -> 1050 | H42: =SUM(H43:H52) -> 0 | I42: 1050 | J42: 0 | K42: 0 | L42: 0
E43: 613100 | F43: Putni troškovi | G43: =Godišnji!G42 -> 500 | H43: =Godišnji!H42 -> 0 | I43: =SUM(G43:H43) -> 500 | L43: =SUM(J43:K43) -> 0
E44: 613200 | F44: Izdaci za energiju | G44: =Godišnji!G43 -> 0 | H44: =Godišnji!H43 -> 0 | I44: 0 | L44: 0
E45: 613300 | F45: Izdaci za komunikaciju i komunalne usluge | G45: =Godišnji!G44 -> 0 | H45: =Godišnji!H44 -> 0 | I45: 0 | L45: 0
E46: 613400 | F46: Nabava materijala i sitnog inventara | G46: =Godišnji!G45 -> 0 | H46: =Godišnji!H45 -> 0 | I46: 0 | L46: 0
E47: 613500 | F47: Izdaci za usluge prijevoza i goriva | G47: =Godišnji!G46 -> 0 | H47: =Godišnji!H46 -> 0 | I47: 0 | L47: 0
E48: 613600 | F48: Unajmljivanje imovine, opreme i nemat.imovine | G48: =Godišnji!G47 -> 0 | H48: =Godišnji!H47 -> 0 | I48: 0 | L48: 0
E49: 613700 | F49: Izdaci za tekuće održavanje | G49: =Godišnji!G48 -> 0 | H49: =Godišnji!H48 -> 0 | I49: 0 | L49: 0
E50: 613800 | F50: Izdaci osiguranja, bank.usluga i usluga PP | G50: =Godišnji!G49 -> 0 | H50: =Godišnji!H49 -> 0 | I50: 0 | L50: 0
E51: 613900 | F51: Ugovorene i druge posebne usluge | G51: =Godišnji!G50 -> 550 | H51: =Godišnji!H50 -> 0 | I51: 550 | L51: 0
E52: 613900 | F52: Ugovorene i druge posebne usluge - volonteri | G52: =Godišnji!G51 -> 0 | H52: =Godišnji!H51 -> 0 | I52: 0 | L52: 0
E53: 821000 | F53: Izdaci za nabavku stalnih sredstava | G53: =SUM(G54:G55) -> 0 | H53: =SUM(H54:H55) -> 0 | I53: 0 | J53: 0 | K53: 0 | L53: 0
E54: 821200 | F54: Nabavka građevina | G54: =Godišnji!G53 -> 0 | H54: =Godišnji!H53 -> 0 | I54: =SUM(G54:H54) -> 0 | L54: =SUM(J54:K54) -> 0
E55: 821300 | F55: Nabavka opreme | G55: =Godišnji!G54 -> 0 | H55: =Godišnji!H54 -> 0 | I55: =SUM(G55:H55) -> 0 | L55: =SUM(J55:K55) -> 0
F56: Ukupno za korisnika Stručna služba Skupštine | G56: =G36+G40+G42+G53 -> 45270 | H56: =H36+H40+H42+H53 -> 0 | I56: 45270 | J56: 0 | K56: 0 | L56: 0
A58: 11 | B58: 01 | C58: 0001 | F58: VLADA ŽUPANIJE POSAVSKE
E59: 600000 | F59: Rashodi - tekuća pričuva | G59: =SUM(G60:G62) -> 945000 | H59: =SUM(H60:H62) -> 0 | I59: =SUM(I60:I62) -> 945000 | J59: 0 | K59: 0 | L59: 0
E60: 600000 | F60: Tekuća pričuva Vlade | G60: =Godišnji!G59 -> 900000 | H60: =Godišnji!H59 -> 0 | I60: =SUM(G60:H60) -> 900000 | L60: =SUM(J60:K60) -> 0
E61: 600000 | F61: Tekuća pričuva predsjednika Vlade | G61: =Godišnji!G60 -> 30000 | H61: =Godišnji!H60 -> 0 | I61: =SUM(G61:H61) -> 30000 | L61: =SUM(J61:K61) -> 0
E62: 600000 | F62: Tekuća pričuva zamjenika pred.Vlade | G62: =Godišnji!G61 -> 15000 | H62: =Godišnji!H61 -> 0 | I62: 15000 | L62: 0
E63: 611000 | F63: Plaće i naknade troškova zaposlenih | G63: =SUM(G64:G66) -> 137700 | H63: =SUM(H64:H66) -> 0 | I63: =SUM(I64:I66) -> 137700 | J63: 0 | K63: 0 | L63: 0
E64: 611100 | F64: Bruto plaće i naknade | G64: =Godišnji!G63 -> 109100 | H64: =Godišnji!H63 -> 0 | I64: =SUM(G64:H64) -> 109100 | L64: =SUM(J64:K64) -> 0
E65: 611200 | F65: Naknade troškova zaposlenih | G65: 25200 | H65: =Godišnji!H64 -> 0 | I65: =SUM(G65:H65) -> 25200 | L65: =SUM(J65:K65) -> 0
E66: 611200 | F66: Naknade troškova zaposlenih - volonteri | G66: =Godišnji!G65 -> 3400 | H66: =Godišnji!H65 -> 0 | I66: 3400 | L66: 0
E67: 612000 | F67: Doprinosi poslodavca | G67: =G68 -> 11900 | H67: =H68 -> 0 | I67: =I68 -> 11900 | J67: 0 | K67: 0 | L67: 0
E68: 612100 | F68: Doprinosi poslodavca | G68: =Godišnji!G67 -> 11900 | H68: =Godišnji!H67 -> 0 | I68: =SUM(G68:H68) -> 11900 | L68: =SUM(J68:K68) -> 0
E69: 613000 | F69: Izdaci za materijal, sitan inventar i usluge | G69: =SUM(G70:G80) -> 209500 | H69: =SUM(H70:H80) -> 0 | I69: =SUM(I70:I80) -> 209500 | J69: 0 | K69: 0 | L69: 0
E70: 613100 | F70: Putni troškovi | G70: =Godišnji!G69 -> 14000 | H70: =Godišnji!H69 -> 0 | I70: =SUM(G70:H70) -> 14000 | L70: =SUM(J70:K70) -> 0
E71: 613200 | F71: Izdaci za energiju | G71: =Godišnji!G70 -> 0 | H71: =Godišnji!H70 -> 0 | I71: 0 | L71: 0
E72: 613300 | F72: Izdaci za komunikaciju i komunalne usluge | G72: =Godišnji!G71 -> 5500 | H72: =Godišnji!H71 -> 0 | I72: 5500 | L72: 0
E73: 613400 | F73: Nabava materijala i sitnog inventara | G73: =Godišnji!G72 -> 1500 | H73: =Godišnji!H72 -> 0 | I73: 1500 | L73: 0
E74: 613500 | F74: Izdaci za usluge prijevoza i goriva | G74: =Godišnji!G73 -> 1500 | H74: =Godišnji!H73 -> 0 | I74: 1500 | L74: 0
E75: 613600 | F75: Unajmljivanje imovine, opreme i nemat.imovine | G75: =Godišnji!G74 -> 0 | H75: =Godišnji!H74 -> 0 | I75: 0 | L75: 0
E76: 613700 | F76: Izdaci za tekuće održavanje | G76: =Godišnji!G75 -> 7000 | H76: =Godišnji!H75 -> 0 | I76: 7000 | L76: 0
E77: 613800 | F77: Izdaci osiguranja, bank.usluga i usluga PP | G77: =Godišnji!G76 -> 2600 | H77: =Godišnji!H76 -> 0 | I77: 2600 | L77: 0
E78: 613900 | F78: Ugovorene i druge posebne usluge | G78: =Godišnji!G77 -> 138100 | H78: =Godišnji!H77 -> 0 | I78: 138100 | L78: 0
E79: 613900 | F79: Agencija za državnu službu | G79: =Godišnji!G78 -> 36000 | H79: =Godišnji!H78 -> 0 | I79: 36000 | L79: 0
E80: 613900 | F80: Ugovorene i druge posebne usluge - volonteri | G80: =Godišnji!G79 -> 3300 | H80: =Godišnji!H79 -> 0 | I80: 3300 | L80: 0
E81: 614000 | F81: Tekući grantovi i drugi tekući rashodi | G81: =SUM(G82:G91) -> 705290 | H81: =SUM(H82:H91) -> 244710 | I81: =SUM(I82:I91) -> 950000 | J81: =SUM(J82:J91) -> 0 | K81: 0 | L81: =SUM(L82:L91) -> 0
E82: 614100 | F82: Grant za sanaciju teta uzrokovanih poplavom | G82: =Godišnji!G81 -> 45290 | H82: =Godišnji!H81 -> 244710 | I82: =SUM(G82:H82) -> 290000 | L82: =SUM(J82:K82) -> 0
E83: 614100 | F83: Grant za Sveučilište u Mostaru | G83: =Godišnji!G82 -> 200000 | H83: =Godišnji!H82 -> 0 | I83: 200000 | L83: 0
E84: 614200 | F84: Grant za sufinanc.nabavke udžbenika učenicima | G84: =Godišnji!G83 -> 100000 | H84: =Godišnji!H83 -> 0 | I84: 100000 | L84: 0
E85: 614300 | F85: Grantovi nepro.organizacijama i udruženjima građana | G85: =Godišnji!G84 -> 105000 | H85: =Godišnji!H84 -> 0 | I85: 105000 | L85: 0
E86: 614300 | F86: Grant za Crveni križ Županije Posavske | G86: =Godišnji!G85 -> 30000 | H86: =Godišnji!H85 -> 0 | I86: 30000 | L86: 0
E87: 614300 | F87: Grant za Kuću nade Odžak | G87: =Godišnji!G86 -> 15000 | H87: =Godišnji!H86 -> 0 | I87: 15000 | L87: 0
E88: 614300 | F88: Grant za udr.roditelja djece s pos.potrebama Orašje | G88: =Godišnji!G87 -> 15000 | H88: =Godišnji!H87 -> 0 | I88: 15000 | L88: 0
E89: 614300 | F89: Grant za udr.roditelja djce s pos.potr.Angelus Domalj. | G89: =Godišnji!G88 -> 5000 | H89: =Godišnji!H88 -> 0 | I89: 5000 | L89: 0
E90: 614300 | F90: Grant za Gospodarsku komoru ŽP | G90: =Godišnji!G89 -> 30000 | H90: =Godišnji!H89 -> 0 | I90: 30000 | L90: 0
E91: 614300 | F91: Grantovi političkim strankama | G91: =Godišnji!G90 -> 160000 | H91: =Godišnji!H90 -> 0 | I91: 160000 | L91: 0
E92: 615000 | F92: Kapitalni grantovi | G92: =G93 -> 500000 | H92: =H93 -> 0 | I92: =I93 -> 500000 | J92: =J93 -> 0 | K92: 0 | L92: =L93 -> 0
E93: 615100 | F93: Kapitalni grantovi | G93: =Godišnji!G92 -> 500000 | H93: =Godišnji!H92 -> 0 | I93: =SUM(G93:H93) -> 500000 | L93: =SUM(J93:K93) -> 0
E94: 821000 | F94: Izdaci za nabavku stalnih sredstava | G94: =SUM(G95:G97) -> 168000 | H94: =SUM(H95:H97) -> 186830 | I94: 354830 | J94: 0 | K94: 0 | L94: 0
E95: 821200 | F95: Nabavka građevina | G95: =Godišnji!G94 -> 8800 | H95: =Godišnji!H94 -> 0 | I95: =SUM(G95:H95) -> 8800 | L95: =SUM(J95:K95) -> 0
E96: 821300 | F96: Nabavka opreme | G96: =Godišnji!G95 -> 59200 | H96: =Godišnji!H95 -> 0 | I96: =SUM(G96:H96) -> 59200 | L96: =SUM(J96:K96) -> 0
E97: 821500 | F97: Nabavka stalnih sredstava u obliku prava | G97: =Godišnji!G96 -> 100000 | H97: =Godišnji!H96 -> 186830 | I97: =SUM(G97:H97) -> 286830 | L97: =SUM(J97:K97) -> 0
F98: Ukupno za korisnika Vlada Županije Posavske | G98: =G59+G63+G67+G69+G81+G92+G94 -> 2677390 | H98: 431540 | I98: 3108930 | J98: 0 | K98: 0 | L98: 0
A100: 11 | B100: 01 | C100: 0002 | F100: URED ZA RASELJENE
E101: 611000 | F101: Plaće i naknade troškova zaposlenih | G101: =SUM(G102:G104) -> 6240 | H101: =SUM(H102:H104) -> 0 | I101: 6240 | J101: 0 | K101: 0 | L101: 0
E102: 611100 | F102: Bruto plaće i naknade | G102: =Godišnji!G101 -> 2000 | H102: =Godišnji!H101 -> 0 | I102: =SUM(G102:H102) -> 2000 | L102: =SUM(J102:K102) -> 0
E103: 611200 | F103: Naknade troškova zaposlenih | G103: =Godišnji!G102 -> 840 | H103: =Godišnji!H102 -> 0 | I103: =SUM(G103:H103) -> 840 | L103: =SUM(J103:K103) -> 0
E104: 611200 | F104: Naknade troškova zaposlenih - volonteri | G104: =Godišnji!G103 -> 3400 | H104: =Godišnji!H103 -> 0 | I104: 3400 | L104: 0
E105: 612000 | F105: Doprinosi poslodavca | G105: =G106 -> 300 | H105: =H106 -> 0 | I105: 300 | J105: 0 | K105: 0 | L105: 0
E106: 612100 | F106: Doprinosi poslodavca | G106: =Godišnji!G105 -> 300 | H106: =Godišnji!H105 -> 0 | I106: =SUM(G106:H106) -> 300 | L106: =SUM(J106:K106) -> 0
E107: 613000 | F107: Izdaci za materijal, sitan inventar i usluge | G107: =SUM(G108:G117) -> 14100 | H107: =SUM(H108:H117) -> 0 | I107: 14100 | J107: 0 | K107: 0 | L107: 0
E108: 613100 | F108: Putni troškovi | G108: =Godišnji!G107 -> 300 | H108: =Godišnji!H107 -> 0 | I108: =SUM(G108:H108) -> 300 | L108: =SUM(J108:K108) -> 0
E109: 613200 | F109: Izdaci za energiju | G109: =Godišnji!G108 -> 0 | H109: =Godišnji!H108 -> 0 | I109: 0 | L109: 0
E110: 613300 | F110: Izdaci za komunikaciju i komunalne usluge | G110: =Godišnji!G109 -> 1100 | H110: =Godišnji!H109 -> 0 | I110: 1100 | L110: 0
E111: 613400 | F111: Nabava materijala i sitnog inventara | G111: =Godišnji!G110 -> 0 | H111: =Godišnji!H110 -> 0 | I111: 0 | L111: 0
E112: 613500 | F112: Izdaci za usluge prijevoza i goriva | G112: =Godišnji!G111 -> 0 | H112: =Godišnji!H111 -> 0 | I112: 0 | L112: 0
E113: 613600 | F113: Unajmljivanje imovine, opreme i nemat.imovine | G113: =Godišnji!G112 -> 0 | H113: =Godišnji!H112 -> 0 | I113: 0 | L113: 0
E114: 613700 | F114: Izdaci za tekuće održavanje | G114: =Godišnji!G113 -> 400 | H114: =Godišnji!H113 -> 0 | I114: 400 | L114: 0
E115: 613800 | F115: Izdaci osiguranja, bank.usluga i usluga PP | G115: =Godišnji!G114 -> 0 | H115: =Godišnji!H114 -> 0 | I115: 0 | L115: 0
E116: 613900 | F116: Ugovorene i druge posebne usluge | G116: =Godišnji!G115 -> 9000 | H116: =Godišnji!H115 -> 0 | I116: 9000 | L116: 0
E117: 613900 | F117: Ugovorene i druge posebne usluge - volonteri | G117: =Godišnji!G116 -> 3300 | H117: =Godišnji!H116 -> 0 | I117: 3300 | L117: 0
E118: 614000 | F118: Tekući grantovi i drugi tekući rashodi | G118: =G119 -> 12000 | H118: 0 | I118: 12000 | J118: 0 | K118: 0 | L118: 0
E119: 614200 | F119: Grantovi za povratak raseljenih osoba | G119: =Godišnji!G118 -> 12000 | H119: =Godišnji!H118 -> 0 | I119: =SUM(G119:H119) -> 12000 | L119: =SUM(J119:K119) -> 0
E120: 821000 | F120: Izdaci za nabavku stalnih sredstava | G120: =SUM(G121:G122) -> 1000 | H120: =SUM(H121:H122) -> 0 | I120: 1000 | J120: 0 | K120: 0 | L120: 0
E121: 821200 | F121: Nabavka građevina | G121: =Godišnji!G120 -> 0 | H121: =Godišnji!H120 -> 0 | I121: =SUM(G121:H121) -> 0 | L121: =SUM(J121:K121) -> 0
E122: 821300 | F122: Nabavka opreme | G122: =Godišnji!G121 -> 1000 | H122: =Godišnji!H121 -> 0 | I122: =SUM(G122:H122) -> 1000 | L122: =SUM(J122:K122) -> 0
F123: Ukupno za korisnika Ured za raseljene | G123: =G101+G105+G107+G118+G120 -> 33640 | H123: =H101+H105+H107+H118+H120 -> 0 | I123: 33640 | J123: 0 | K123: 0 | L123: 0
A125: 11 | B125: 01 | C125: 0003 | F125: URED ZA ZAKONODAVSTVO
E126: 611000 | F126: Plaće i naknade troškova zaposlenih | G126: =SUM(G127:G129) -> 30840 | H126: =SUM(H127:H129) -> 0 | I126: 30840 | J126: 0 | K126: 0 | L126: 0
E127: 611100 | F127: Bruto plaće i naknade | G127: =Godišnji!G126 -> 27800 | H127: =Godišnji!H126 -> 0 | I127: =SUM(G127:H127) -> 27800 | L127: =SUM(J127:K127) -> 0
E128: 611200 | F128: Naknade troškova zaposlenih | G128: =Godišnji!G127 -> 3040 | H128: =Godišnji!H127 -> 0 | I128: =SUM(G128:H128) -> 3040 | L128: =SUM(J128:K128) -> 0
E129: 611200 | F129: Naknade troškova zaposlenih - volonteri | G129: =Godišnji!G128 -> 0 | H129: =Godišnji!H128 -> 0 | I129: 0 | L129: 0
E130: 612000 | F130: Doprinosi poslodavca | G130: =G131 -> 3100 | H130: =H131 -> 0 | I130: 3100 | J130: 0 | K130: 0 | L130: 0
E131: 612100 | F131: Doprinosi poslodavca | G131: =Godišnji!G130 -> 3100 | H131: =Godišnji!H130 -> 0 | I131: =SUM(G131:H131) -> 3100 | L131: =SUM(J131:K131) -> 0
E132: 613000 | F132: Izdaci za materijal, sitan inventar i usluge | G132: =SUM(G133:G142) -> 23300 | H132: =SUM(H133:H142) -> 0 | I132: 23300 | J132: 0 | K132: 0 | L132: 0
E133: 613100 | F133: Putni troškovi | G133: =Godišnji!G132 -> 300 | H133: =Godišnji!H132 -> 0 | I133: =SUM(G133:H133) -> 300 | L133: =SUM(J133:K133) -> 0
E134: 613200 | F134: Izdaci za energiju | G134: =Godišnji!G133 -> 0 | H134: =Godišnji!H133 -> 0 | I134: 0 | L134: 0
E135: 613300 | F135: Izdaci za komunikaciju i komunalne usluge | G135: =Godišnji!G134 -> 0 | H135: =Godišnji!H134 -> 0 | I135: 0 | L135: 0
E136: 613400 | F136: Nabava materijala i sitnog inventara | G136: =Godišnji!G135 -> 0 | H136: =Godišnji!H135 -> 0 | I136: 0 | L136: 0
E137: 613500 | F137: Izdaci za usluge prijevoza i goriva | G137: =Godišnji!G136 -> 0 | H137: =Godišnji!H136 -> 0 | I137: 0 | L137: 0
E138: 613600 | F138: Unajmljivanje imovine, opreme i nemat.imovine | G138: =Godišnji!G137 -> 0 | H138: =Godišnji!H137 -> 0 | I138: 0 | L138: 0
E139: 613700 | F139: Izdaci za tekuće održavanje | G139: =Godišnji!G138 -> 0 | H139: =Godišnji!H138 -> 0 | I139: 0 | L139: 0
E140: 613800 | F140: Izdaci osiguranja, bank.usluga i usluga PP | G140: =Godišnji!G139 -> 0 | H140: =Godišnji!H139 -> 0 | I140: 0 | L140: 0
E141: 613900 | F141: Ugovorene i druge posebne usluge | G141: =Godišnji!G140 -> 23000 | H141: =Godišnji!H140 -> 0 | I141: 23000 | L141: 0
E142: 613900 | F142: Ugovorene i druge posebne usluge - volonteri | G142: =Godišnji!G141 -> 0 | H142: =Godišnji!H141 -> 0 | I142: 0 | L142: 0
E143: 821000 | F143: Izdaci za nabavku stalnih sredstava | G143: =SUM(G144:G145) -> 0 | H143: =SUM(H144:H145) -> 0 | I143: 0 | J143: 0 | K143: 0 | L143: 0
E144: 821200 | F144: Nabavka građevina | G144: =Godišnji!G143 -> 0 | H144: =Godišnji!H143 -> 0 | I144: =SUM(G144:H144) -> 0 | L144: =SUM(J144:K144) -> 0
E145: 821300 | F145: Nabavka opreme | G145: =Godišnji!G144 -> 0 | H145: =Godišnji!H144 -> 0 | I145: =SUM(G145:H145) -> 0 | L145: =SUM(J145:K145) -> 0
F146: Ukupno za korisnika Ured za zakonodavstvo | G146: =G126+G130+G132+G143 -> 57240 | H146: =H126+H130+H132+H143 -> 0 | I146: 57240 | J146: 0 | K146: 0 | L146: 0
A148: 11 | B148: 01 | C148: 0004 | F148: SLUŽBA ZA ODNOSE S JAVNOŠĆU
E149: 611000 | F149: Plaće i naknade troškova zaposlenih | G149: =SUM(G150:G152) -> 75820 | H149: =SUM(H150:H152) -> 0 | I149: 75820 | J149: 0 | K149: 0 | L149: 0
E150: 611100 | F150: Bruto plaće i naknade | G150: =Godišnji!G149 -> 61200 | H150: =Godišnji!H149 -> 0 | I150: =SUM(G150:H150) -> 61200 | L150: =SUM(J150:K150) -> 0
E151: 611200 | F151: Naknade troškova zaposlenih | G151: =Godišnji!G150 -> 11520 | H151: =Godišnji!H150 -> 0 | I151: =SUM(G151:H151) -> 11520 | L151: =SUM(J151:K151) -> 0
E152: 611200 | F152: Naknade troškova zaposlenih - volonteri | G152: =Godišnji!G151 -> 3100 | H152: =Godišnji!H151 -> 0 | I152: 3100 | L152: 0
E153: 612000 | F153: Doprinosi poslodavca | G153: =G154 -> 6800 | H153: =H154 -> 0 | I153: 6800 | J153: 0 | K153: 0 | L153: 0
E154: 612100 | F154: Doprinosi poslodavca | G154: =Godišnji!G153 -> 6800 | H154: =Godišnji!H153 -> 0 | I154: =SUM(G154:H154) -> 6800 | L154: =SUM(J154:K154) -> 0
E155: 613000 | F155: Izdaci za materijal, sitan inventar i usluge | G155: =SUM(G156:G165) -> 16200 | H155: =SUM(H156:H165) -> 0 | I155: 16200 | J155: 0 | K155: 0 | L155: 0
E156: 613100 | F156: Putni troškovi | G156: =Godišnji!G155 -> 950 | H156: =Godišnji!H155 -> 0 | I156: =SUM(G156:H156) -> 950 | L156: =SUM(J156:K156) -> 0
E157: 613200 | F157: Izdaci za energiju | G157: =Godišnji!G156 -> 0 | H157: =Godišnji!H156 -> 0 | I157: 0 | L157: 0
E158: 613300 | F158: Izdaci za komunikaciju i komunalne usluge | G158: =Godišnji!G157 -> 2500 | H158: =Godišnji!H157 -> 0 | I158: 2500 | L158: 0
E159: 613400 | F159: Nabava materijala i sitnog inventara | G159: =Godišnji!G158 -> 0 | H159: =Godišnji!H158 -> 0 | I159: 0 | L159: 0
E160: 613500 | F160: Izdaci za usluge prijevoza i goriva | G160: =Godišnji!G159 -> 0 | H160: =Godišnji!H159 -> 0 | I160: 0 | L160: 0
E161: 613600 | F161: Unajmljivanje imovine, opreme i nemat.imovine | G161: =Godišnji!G160 -> 0 | H161: =Godišnji!H160 -> 0 | I161: 0 | L161: 0
E162: 613700 | F162: Izdaci za tekuće održavanje | G162: =Godišnji!G161 -> 400 | H162: =Godišnji!H161 -> 0 | I162: 400 | L162: 0
E163: 613800 | F163: Izdaci osiguranja, bank.usluga i usluga PP | G163: =Godišnji!G162 -> 0 | H163: =Godišnji!H162 -> 0 | I163: 0 | L163: 0
E164: 613900 | F164: Ugovorene i druge posebne usluge | G164: =Godišnji!G163 -> 8800 | H164: =Godišnji!H163 -> 0 | I164: 8800 | L164: 0
E165: 613900 | F165: Ugovorene i druge posebne usluge - volonteri | G165: =Godišnji!G164 -> 3550 | H165: =Godišnji!H164 -> 0 | I165: 3550 | L165: 0
E166: 821000 | F166: Izdaci za nabavku stalnih sredstava | G166: =SUM(G167:G168) -> 4450 | H166: =SUM(H167:H168) -> 0 | I166: 4450 | J166: 0 | K166: 0 | L166: 0
E167: 821200 | F167: Nabavka građevina | G167: =Godišnji!G166 -> 0 | H167: =Godišnji!H166 -> 0 | I167: =SUM(G167:H167) -> 0 | L167: =SUM(J167:K167) -> 0
E168: 821300 | F168: Nabavka opreme | G168: =Godišnji!G167 -> 4450 | H168: =Godišnji!H167 -> 0 | I168: =SUM(G168:H168) -> 4450 | L168: =SUM(J168:K168) -> 0
F169: Ukupno za korisnika Služba za odnose s javnošću | G169: =G149+G153+G155+G166 -> 103270 | H169: =H149+H153+H155+H166 -> 0 | I169: 103270 | J169: 0 | K169: 0 | L169: 0
A171: 11 | B171: 01 | C171: 0005 | F171: URED ZA GOSPODARSKI RAZVOJ ŽP
E172: 611000 | F172: Plaće i naknade troškova zaposlenih | G172: =SUM(G173:G175) -> 76860 | H172: =SUM(H173:H175) -> 0 | I172: 76860 | J172: 0 | K172: 0 | L172: 0
E173: 611100 | F173: Bruto plaće i naknade | G173: =Godišnji!G172 -> 52300 | H173: =Godišnji!H172 -> 0 | I173: =SUM(G173:H173) -> 52300 | L173: =SUM(J173:K173) -> 0
E174: 611200 | F174: Naknade troškova zaposlenih | G174: =Godišnji!G173 -> 15760 | H174: =Godišnji!H173 -> 0 | I174: =SUM(G174:H174) -> 15760 | L174: =SUM(J174:K174) -> 0
E175: 611200 | F175: Naknade troškova zaposlenih - volonteri | G175: =Godišnji!G174 -> 8800 | H175: =Godišnji!H174 -> 0 | I175: 8800 | L175: 0
E176: 612000 | F176: Doprinosi poslodavca | G176: =G177 -> 5900 | H176: =H177 -> 0 | I176: 5900 | J176: 0 | K176: 0 | L176: 0
E177: 612100 | F177: Doprinosi poslodavca | G177: =Godišnji!G176 -> 5900 | H177: =Godišnji!H176 -> 0 | I177: =SUM(G177:H177) -> 5900 | L177: =SUM(J177:K177) -> 0
E178: 613000 | F178: Izdaci za materijal, sitan inventar i usluge | G178: =SUM(G179:G188) -> 13900 | H178: =SUM(H179:H188) -> 0 | I178: 13900 | J178: 0 | K178: 0 | L178: 0
E179: 613100 | F179: Putni troškovi | G179: =Godišnji!G178 -> 2800 | H179: =Godišnji!H178 -> 0 | I179: =SUM(G179:H179) -> 2800 | L179: =SUM(J179:K179) -> 0
E180: 613200 | F180: Izdaci za energiju | G180: =Godišnji!G179 -> 0 | H180: =Godišnji!H179 -> 0 | I180: 0 | L180: 0
E181: 613300 | F181: Izdaci za komunikaciju i komunalne usluge | G181: =Godišnji!G180 -> 600 | H181: =Godišnji!H180 -> 0 | I181: 600 | L181: 0
E182: 613400 | F182: Nabava materijala i sitnog inventara | G182: =Godišnji!G181 -> 600 | H182: =Godišnji!H181 -> 0 | I182: 600 | L182: 0
E183: 613500 | F183: Izdaci za usluge prijevoza i goriva | G183: =Godišnji!G182 -> 0 | H183: =Godišnji!H182 -> 0 | I183: 0 | L183: 0
E184: 613600 | F184: Unajmljivanje imovine, opreme i nemat.imovine | G184: =Godišnji!G183 -> 0 | H184: =Godišnji!H183 -> 0 | I184: 0 | L184: 0
E185: 613700 | F185: Izdaci za tekuće održavanje | G185: =Godišnji!G184 -> 300 | H185: =Godišnji!H184 -> 0 | I185: 300 | L185: 0
E186: 613800 | F186: Izdaci osiguranja, bank.usluga i usluga PP | G186: =Godišnji!G185 -> 0 | H186: =Godišnji!H185 -> 0 | I186: 0 | L186: 0
E187: 613900 | F187: Ugovorene i druge posebne usluge | G187: =Godišnji!G186 -> 1500 | H187: =Godišnji!H186 -> 0 | I187: 1500 | L187: 0
E188: 613900 | F188: Ugovorene i druge posebne usluge - volonteri | G188: =Godišnji!G187 -> 8100 | H188: =Godišnji!H187 -> 0 | I188: 8100 | L188: 0
E189: 821000 | F189: Izdaci za nabavku stalnih sredstava | G189: =SUM(G190:G191) -> 4500 | H189: =SUM(H190:H191) -> 0 | I189: 4500 | J189: 0 | K189: 0 | L189: 0
E190: 821200 | F190: Nabavka građevina | G190: =Godišnji!G189 -> 0 | H190: =Godišnji!H189 -> 0 | I190: =SUM(G190:H190) -> 0 | L190: =SUM(J190:K190) -> 0
E191: 821300 | F191: Nabavka opreme | G191: =Godišnji!G190 -> 4500 | H191: =Godišnji!H190 -> 0 | I191: =SUM(G191:H191) -> 4500 | L191: =SUM(J191:K191) -> 0
F192: Ukupno za korisnika Ured za gospodarski razvoj ŽP | G192: =G172+G176+G178+G189 -> 101160 | H192: =H172+H176+H178+H189 -> 0 | I192: 101160 | J192: 0 | K192: 0 | L192: 0
A194: 12 | B194: 01 | C194: 0001 | F194: ZAJEDNIČKA SLUŽBA VLADE
E195: 611000 | F195: Plaće i naknade troškova zaposlenih | G195: =SUM(G196:G198) -> 241160 | H195: =SUM(H196:H198) -> 0 | I195: 241160 | J195: 0 | K195: 0 | L195: 0
E196: 611100 | F196: Bruto plaće i naknade | G196: =Godišnji!G195 -> 162100 | H196: =Godišnji!H195 -> 0 | I196: =SUM(G196:H196) -> 162100 | L196: =SUM(J196:K196) -> 0
E197: 611200 | F197: Naknade troškova zaposlenih | G197: =Godišnji!G196 -> 58260 | H197: =Godišnji!H196 -> 0 | I197: =SUM(G197:H197) -> 58260 | L197: =SUM(J197:K197) -> 0
E198: 611200 | F198: Naknade troškova zaposlenih - volonteri | G198: =Godišnji!G197 -> 20800 | H198: =Godišnji!H197 -> 0 | I198: 20800 | L198: 0
E199: 612000 | F199: Doprinosi poslodavca | G199: =G200 -> 17600 | H199: =H200 -> 0 | I199: 17600 | J199: 0 | K199: 0 | L199: 0
E200: 612100 | F200: Doprinosi poslodavca | G200: =Godišnji!G199 -> 17600 | H200: =Godišnji!H199 -> 0 | I200: =SUM(G200:H200) -> 17600 | L200: =SUM(J200:K200) -> 0
E201: 613000 | F201: Izdaci za materijal, sitan inventar i usluge | G201: =SUM(G202:G211) -> 400400 | H201: =SUM(H202:H211) -> 0 | I201: 400400 | J201: 0 | K201: 0 | L201: 0
E202: 613100 | F202: Putni troškovi | G202: =Godišnji!G201 -> 6000 | H202: =Godišnji!H201 -> 0 | I202: =SUM(G202:H202) -> 6000 | L202: =SUM(J202:K202) -> 0
E203: 613200 | F203: Izdaci za energiju | G203: =Godišnji!G202 -> 104200 | H203: =Godišnji!H202 -> 0 | I203: 104200 | L203: 0
E204: 613300 | F204: Izdaci za komunikaciju i komunalne usluge | G204: =Godišnji!G203 -> 44000 | H204: =Godišnji!H203 -> 0 | I204: 44000 | L204: 0
E205: 613400 | F205: Nabava materijala i sitnog inventara | G205: =Godišnji!G204 -> 79000 | H205: =Godišnji!H204 -> 0 | I205: 79000 | L205: 0
E206: 613500 | F206: Izdaci za usluge prijevoza i goriva | G206: =Godišnji!G205 -> 41400 | H206: =Godišnji!H205 -> 0 | I206: 41400 | L206: 0
E207: 613600 | F207: Unajmljivanje imovine, opreme i nemat.imovine | G207: =Godišnji!G206 -> 0 | H207: =Godišnji!H206 -> 0 | I207: 0 | L207: 0
E208: 613700 | F208: Izdaci za tekuće održavanje | G208: =Godišnji!G207 -> 40000 | H208: =Godišnji!H207 -> 0 | I208: 40000 | L208: 0
... 692 more rows
